Workbook

Sheet Main
I1: =Summary!B92 -> Target Corp (NYSE: TGT)
B2: Ticker: | C2: tgt | F2: ROIC: | G2: =IF(coROIC5>=10,"Go","Stop") -> Stop | P2: =UPPER(C2) -> TGT | Q2: Company | S2: Industry | U2: S&P 500
B3: PE (ttm): | C3: 12.36 | F3: ROE: | G3: =IF(coROE5>=10,"Go","Stop") -> Go | Q3: 5 | R3: 1 | S3: 5 | T3: 1 | U3: 5 | V3: 1
B4: Sticker Price: | C4: =PV(discountRate,9,,(-FV(C15,9,,-currentEPS*C16))) -> 69.85777513 | F4: ROA: | G4: =IF(coROA5>=10,"Go","Stop") -> Stop | P4: ROE | Q4: 17.7 | R4: 19.8 | S4: 19 | T4: 21.8 | U4: 23.9 | V4: 26.4
B5: At 50% off: | C5: =stickerPrice/2 -> 34.92888756 | F5: Rule # 1: | G5: =IF(halfOff>=C6,"Go","Stop") -> Stop | P5: ROA | Q5: 6.3 | R5: 6.4 | S5: 8 | T5: 8.4 | U5: 8.1 | V5: 9
B6: Last Price: | C6: =lastPrice -> 53.47 | F6: Payback Time: | G6: =V24 -> >10 | P6: ROIC | Q6: 8.5 | R6: 8.8 | S6: 12.3 | T6: 13 | U6: 11 | V6: 11.9
F7: FACs | R7: Years
B8: DDM (PE): | C8: x.xx | Q8: 10 | R8: 7 | S8: 5 | T8: 3 | U8: 1
B9: DDM (PB): | C9: x.xx | F9: Volume>150%: | G9: =IF(Volume/ADV>=1.5,"Go","Stop") -> Stop | P9: Equity Growth Rate: | Q9: 0.1088635459 | R9: 0.07035964239 | S9: 0.04883507003 | T9: 0.09884681595 | U9: 0.06744298884
B10: FcFF: | C10: =FCF!D5 -> 147.1568149 | P10: EPS Growth Rate: | Q10: 0.07413563949 | R10: 0.02670685651 | S10: -0.04336513712 | T10: 0.4944341181 | U10: 0.04361370717
B11: FcFE: | C11: x.xx | G11: Current Assets | L11: Non Current Assets | P11: Sales Growth Rate: | Q11: 0.04667972834 | R11: -0.004096117894 | S11: -0.01525890385 | T11: 0.3015114689 | U11: 0.06522104555
B12: Acq. /Break Up: | C12: ='Net-Net'!D47 ->  | P12: Cash Growth Rate: | Q12: 0.03958472362 | R12: 0.001693111949 | S12: 0.004826532048 | T12: 0.2482155095 | U12: 0.193038822
P13: FcF Growth Rate:
B14: EPS (Current): | C14: =currentEPS -> 4.28 | P14: NCAV Growth Rate:
B15: Future EPS Growth Rate: | C15: =IF(MIN(estimateEPSGrowthRate)=0,EPSGrowthRate,MIN(estimateEPSGrowthRate)) -> 0.07413563949 | P15: NAV Growth Rate:
B16: Future PE: | C16: =IF(futurePE<>"",futurePE,historicalPE) -> 12.36
B17: Discount Rate: | C17: =WACC -> 0.15
C19: Estimate | E19: Adjustment
B20: Equity Growth Rate: | C20: =IF(E20="",Q9,E20) -> 0.1088635459
B21: EPS Growth Rate: | C21: =IF(E21="",Q10,E21) -> 0.07413563949
B22: Sales Growth Rate: | C22: =IF(E22="",Q11,E22) -> 0.04667972834
B23: Cash Growth Rate: | C23: 0.03958472362
B24: EPS (Current): | C24: 4.28 | P24: Year | Q24: Cumulative | S24: Payback Price | U24: Payback Time | V24: >10
B25: Last Price: | C25: 53.47 | J25: Dividend Yield | L25: 2.24 | Q25: Earnings | U25: Est. Market Cap: | V25: ='Net-Net'!E35 -> 35899.758
B26: Analysts' Estimate EPS Growth Rate: | J26: Net Profit Margin | L26: 0.0431 | P26: 1 | Q26: =earnings+(futureGrowth*earnings) -> 3136.476067 | R26: =Q26/sharesOutstanding -> 4.670154954 | U26: Shares Outstanding: | V26: =FCF!D4 -> 671.6
B27: Analysts' Estimate Future PE: | C27: 12.36 | J27: Earnings Yield | L27: =1/PEttm -> 0.08090614887 | P27: 2 | Q27: =Q26+(futureGrowth*Q26) -> 3369.000726 | R27: 5.016379878 | U27: Earnings: | V27: =Financials2!F30 -> 2920
B28: Historical PE: | J28: Shiller PE | L28: =C6/(AVERAGE(Financials2!B22:F22)) -> 0.02016518329 | P28: 3 | Q28: 3618.76375 | R28: 5.388272408
B29: Debt: | C29: ='Net-Net'!E33/Financials2!F14 -> 6.73971079 | P29: 4 | Q29: 3887.043114 | R29: 5.787735429 | U29: Volume>150%: | V29: =Volume/ADV -> 0.5975975976
B30: Terminal Value | P30: 5 | Q30: 4175.211541 | R30: 6.216812896 | U30: Volume | V30: 3.98
B31: PE: | C31: =IF(futurePE="",,futurePE) -> 12.36 | P31: 6 | Q31: 4484.743519 | R31: 6.677700296 | U31: Avg Daily Volume | V31: 6.66
B32: PB: | C32: =C6/'Net-Net'!E37 ->  | P32: 7 | Q32: 4817.222848 | R32: 7.172755878
B33: Margins | P33: 8 | Q33: 5174.350744 | R33: 7.704512722
B34: Gross Margin | C34: =AVERAGE(Financials2!B136:F136) -> 0.3051058899 | I34: Shares($10,000) | K34: Price | L34: 10-Y Price | N34: 10-Y ROI | P34: 9 | Q34: 5557.954545 | R34: 8.275691699
B35: Operating Margin | C35: =AVERAGE(Financials2!B137:F137) -> 0.06579374898 | I35: =10000/K35 -> 187.0207593 | K35: =C6 -> 53.47 | L35: =FV(C15,9,,-currentEPS*C16) -> 100.6918636 | N35: =((L35/K35)^(1/10)-1) -> 0.06534045586 | P35: 10 | Q35: 5969.99706 | R35: 8.889215396
B36: Net Margin | C36: =AVERAGE(Financials2!B138:F138) -> 0.04145900871 | P36: >10 | Q36: 6412.586609 | R36: 9.548223063

Sheet bullPen
B1: NCAV | C1: NAV | E1: Net Current Asset Value | I1: Net Asset Value
B2: Current | C2: Current | E2: Low | F2: Base | G2: High | I2: Low | J2: Base | K2: High
A3: AIRT | B3: 0.2233791476 | C3: 0.4394002499 | E3: -0.3916979037 | F3: -0.193613772 | G3: 0.1139247536 | I3: -0.3376926281 | J3: -0.096404276 | K3: 0.2543384701 | P3: AIRT
A4: BBW | B4: -0.6858038774 | C4: 0.2231702278 | E4: -1.00069451 | F4: -0.8913370351 | G4: -0.733891719 | I4: -0.7734509833 | J4: -0.4822986877 | K4: -0.1430585506 | P4: BTN
A5: FLXS | B5: 1.041424618 | C5: 1.778065026 | E5: -0.2399606638 | F5: 0.1766375701 | G5: 0.8173302108 | I5: -0.05580056166 | J5: 0.508125754 | K5: 1.296146476 | P5: BBW
A6: GTSI | B6: 0.02321920504 | C6: 0.3386180919 | E6: -0.4082897622 | F6: -0.2100550964 | G6: 0.005699387193 | I6: -0.3294400405 | J6: -0.06812559735 | K6: 0.2107086636 | P6: FLXS
A7: IMN | B7: 0.4826623873 | C7: 1.99101534 | E7: -0.4209416824 | F7: -0.08622528163 | G7: 0.3655767532 | I7: -0.04385344412 | J7: 0.5925335473 | K7: 1.346006173 | P7: GTSI
A8: KBALB | B8: -0.35944497 | C8: 0.4732080912 | E8: -0.8696904987 | F8: -0.6908483128 | G8: -0.4357255485 | I8: -0.6615272334 | J8: -0.3161544353 | K8: 0.1054989413 | P8: IMN
A9: MEAD | B9: 0.1977440549 | C9: 0.3431013431 | E9: -0.3643816501 | F9: -0.1886737601 | G9: 0.09238909239 | I9: -0.328042328 | J9: -0.1232629804 | K9: 0.1868713297 | P9: KBALB
A10: MLNK | B10: -0.4279939269 | C10: -0.1900694554 | E10: -0.6932348476 | F10: -0.5965219497 | G10: -0.4639014894 | I10: -0.6337537297 | J10: -0.4894559376 | K10: -0.3092505829 | P10: MEAD
A11: NVLT | B11: -0.9705828277 | C11: -0.9692038978 | E11: -0.9722375437 | F11: -0.9714101857 | G11: -0.9705828277 | I11: -0.9718928112 | J11: -0.9707896672 | K11: -0.9696865233 | P11: MLNK
A12: SRT | B12: -0.6141553734 | C12: -0.1685860696 | E12: -0.7648508222 | F12: -0.6895030978 | G12: -0.6141553734 | I12: -0.6534584963 | J12: -0.4889969111 | K12: -0.3245353259 | P12: NVLT
A13: TSRI | B13: -0.1654879774 | C13: -0.1405671179 | E13: -0.2931905435 | F13: -0.2293392605 | G13: -0.1654879774 | I13: -0.2869603287 | J13: -0.2181248737 | K13: -0.1492894187 | P13: SRT
A14: TMNG | B14: -0.5960644145 | C14: -0.3967869634 | E14: -0.6654752296 | F14: -0.6307698221 | G14: -0.5960644145 | I14: -0.6156558669 | J14: -0.5410949691 | K14: -0.4665340713 | P14: TSRI
A15: BBW | B15: -0.4077112206 | C15: -0.1517310791 | E15: -1.00068673 | F15: -0.8291145122 | G15: -0.5326267576 | I15: -0.9366916945 | J15: -0.7139234485 | K15: -0.3662396656 | P15: TMNG
P16: TUES

Sheet Net-Net
B1: =Main!I1 -> Target Corp (NYSE: TGT)
O2: Current Assets
G4: Recover (%) | K4: Recover ($)
B5: Assets | G5: Low | H5: Base | I5: High | K5: Low | L5: Base | M5: High
C6: Cash and Short Term Investments | E6: =VLOOKUP(R6,interimBS,3,) -> 821 | G6: 1 | H6: 1 | I6: 1 | K6: =$E6*G6 -> 821 | L6: =$E6*H6 -> 821 | M6: 821 | R6: Cash and Short Term Investments
C7: Cash & Equivalents | K7: =$E7*G7 -> 0 | L7: 0 | M7: 0 | R7: Cash & Equivalents
C8: Total Receivables, Net | E8: 5713 | G8: 0.8 | H8: 0.9 | I8: 1 | K8: =$E8*G8 -> 4570.4 | L8: 5141.7 | M8: 5713 | R8: Total Receivables, Net
C9: Accounts Receivable - Trade, Net | K9: 0 | L9: 0 | M9: 0 | R9: Accounts Receivable - Trade, Net
C10: Total Inventory | E10: =VLOOKUP(R10,interimBS,3,) ->  | G10: 0.4 | H10: 0.6 | I10: 0.95 | R10: Total Inventory
C11: Prepaid Expenses | E11: 0 | G11: 0.8 | H11: 0.9 | I11: 1 | K11: 0 | L11: 0 | M11: 0 | R11: Prepaid Expenses
C12: Other Current Assets, Total | E12: 1948 | G12: 0 | H12: 0.5 | I12: 1 | K12: 0 | L12: 974 | M12: 1948 | R12: Other Current Assets, Total
G13: 0 | H13: 0 | I13: 0 | K13: 0 | L13: 0 | M13: 0
C14: Current Assets | E14: =SUM(E6,E8,E10:E12) ->  | G14: =K14/E14 ->  | H14: =L14/E14 ->  | I14: =M14/E14 ->  | K14: =SUM(K6:K13) ->  | L14: =SUM(L6:L13) ->  | M14: =SUM(M6:M13) -> 
E15: =E12/E14 -> 
C16: PPE | E16: =VLOOKUP(R16,interimBS,3,) -> 29040 | G16: 0.25 | H16: 0.45 | I16: 0.65 | K16: 7260 | L16: 13068 | M16: 18876 | O16: Non-Current Assets | R16: Property/Plant/Equipment, Total - Net
C17: Goodwill, Net | E17: 0 | G17: 0.25 | H17: 0.45 | I17: 0.65 | K17: 0 | L17: 0 | M17: 0 | R17: Goodwill, Net
C18: Intangibles, Net | E18: 0 | G18: 0.25 | H18: 0.45 | I18: 0.65 | K18: 0 | L18: =$E18*H18 -> 0 | M18: 0 | R18: Intangibles, Net
C19: Long Term Investments | E19: 0 | G19: 0.25 | H19: 0.45 | I19: 0.65 | K19: 0 | L19: 0 | M19: 0 | R19: Long Term Investments
C20: Note Receivable - Long Term | E20: 0 | G20: 0.25 | H20: 0.45 | I20: 0.65 | K20: 0 | L20: 0 | M20: 0 | R20: Note Receivable - Long Term
C21: Other Long Term Assets, Total | E21: 1035 | G21: 0.25 | H21: 0.45 | I21: 0.65 | K21: 258.75 | L21: 465.75 | M21: 672.75 | R21: Other Long Term Assets, Total
C22: Other Assets, Total | E22: 0 | G22: 0.25 | H22: 0.45 | I22: 0.65 | K22: 0 | L22: 0 | M22: 0 | R22: Other Assets, Total
C23: Total Assets | E23: =E14+SUM(E16:E22) ->  | G23: =K23/$E$23 ->  | H23: =L23/$E$23 ->  | I23: =M23/$E$23 ->  | K23: =K14+SUM(K16:K22) ->  | L23: =L14+SUM(L16:L22) ->  | M23: =M14+SUM(M16:M22) ->  | R23: Total Assets
E24: =E21/E23 -> 
B25: Liabilities
C26: Current Liabilities | E26: =VLOOKUP(R26,interimBS,3,) -> 14139 | G26: 1 | H26: 1 | I26: 1 | K26: =$E26*G26 -> 14139 | L26: =$E26*H26 -> 14139 | M26: =$E26*I26 -> 14139 | R26: Total Current Liabilities
C27: Current Liabilities | E27: =SUM(E26:E26) -> 14139 | G27: =K27/$E$27 -> 1 | H27: =L27/$E$27 -> 1 | I27: =M27/$E$27 -> 1 | K27: =SUM(K26:K26) -> 14139 | L27: =SUM(L26:L26) -> 14139 | M27: =SUM(M26:M26) -> 14139
C30: Long-Term Liabilities | E30: =VLOOKUP(R30,interimBS,3,) -> 16156 | G30: 1 | H30: 1 | I30: 1 | K30: =$E30*G30 -> 16156 | L30: =$E30*H30 -> 16156 | M30: =$E30*I30 -> 16156 | R30: Total Long Term Debt
C31: Long-Term Liabilities | E31: =SUM(E30:E30) -> 16156 | G31: =IF(E31=0,0,K31/$E$31) -> 1 | H31: =IF(F31=0,0,L31/$E$31) -> 0 | I31: =IF(G31=0,0,M31/$E$31) -> 1 | K31: =SUM(K30:K30) -> 16156 | L31: =SUM(L30:L30) -> 16156 | M31: =SUM(M30:M30) -> 16156
C33: Total Liabilities | E33: =E31+E27 -> 30295 | G33: =K33/$E$33 -> 1 | H33: =L33/$E$33 -> 1 | I33: =M33/$E$33 -> 1 | K33: =K31+K27 -> 30295 | L33: =L31+L27 -> 30295 | M33: =M31+M27 -> 30295
B35: Market Cap | E35: =E39*D45 -> 35899.758 | K35: =$E$35 -> 35899.758 | L35: =$E$35 -> 35899.758 | M35: =$E$35 -> 35899.758
B36: Net Current Asset Value | E36: =E14-E33 ->  | K36: =K14-K33 ->  | L36: =L14-L33 ->  | M36: =M14-M33 -> 
B37: Equity (Net Asset Value) | E37: =E23-E33 ->  | K37: =K23-K33 ->  | L37: =L23-L33 ->  | M37: =M23-M33 -> 
B39: Shares Outstanding | E39: =VLOOKUP(R39,interimBS,3,0) -> 671.4 | R39: Total Common Shares Outstanding
B41: Price as a % of NCAV & NAV | D41: =E35/E36 ->  | E41: =E35/E37 ->  | G41: =K35/K36 ->  | H41: =L35/L36 ->  | I41: =M35/M36 ->  | K41: =K35/K37 ->  | L41: =L35/L37 ->  | M41: =M35/M37 -> 
G43: Net Current Asset Value | K43: Net Asset Value
D44: NCAV | E44: NAV | G44: Low | H44: Base | I44: High | K44: Low | L44: Base | M44: High
C45: Current Price | D45: =Main!C6 -> 53.47 | E45: =D45 -> 53.47 | G45: =$D$45 -> 53.47 | H45: =$D$45 -> 53.47 | I45: =$D$45 -> 53.47 | K45: =$D$45 -> 53.47 | L45: =$D$45 -> 53.47 | M45: =$D$45 -> 53.47
C47: NCAV Price | D47: =D45/D41 ->  | E47: =E45/E41 ->  | G47: =G45/G41 ->  | H47: =H45/H41 ->  | I47: =I45/I41 ->  | K47: =K37/$E$39 ->  | L47: =L37/$E$39 ->  | M47: =M37/$E$39 -> 
C49: Upside (Downside) | D49: =D47/D45-1 ->  | E49: =E47/E45-1 ->  | G49: =G47/G45-1 ->  | H49: =H47/H45-1 ->  | I49: =I47/I45-1 ->  | K49: =K47/K45-1 ->  | L49: =L47/L45-1 ->  | M49: =M47/M45-1 -> 
D50: =IF(D49<-0.1,"Sell",IF(D49>0.1,"Buy","Hold")) ->  | E50: =IF(E49<-0.1,"Sell",IF(E49>0.1,"Buy","Hold")) ->  | G50: =IF(G49<-0.1,"Sell",IF(G49>0.1,"Buy","Hold")) ->  | H50: =IF(H49<-0.1,"Sell",IF(H49>0.1,"Buy","Hold")) ->  | I50: =IF(I49<-0.1,"Sell",IF(I49>0.1,"Buy","Hold")) ->  | K50: =IF(K49<-0.1,"Sell",IF(K49>0.1,"Buy","Hold")) ->  | L50: =IF(L49<-0.1,"Sell",IF(L49>0.1,"Buy","Hold")) ->  | M50: =IF(M49<-0.1,"Sell",IF(M49>0.1,"Buy","Hold")) -> 
B53: Assumptions

Sheet Valuations

Sheet Financials
J2: Annual | K2: Interim
L3: 2012 Q3 | M3: 2012 Q2 | N3: 2012 Q1 | O3: 2011 Q4 | P3: 2011 Q3
J4: Period End Date | L4: 40845 | M4: 40754 | N4: 40663 | O4: 40572 | P4: 40481
J6: Stmt Source | L6: 10-Q | M6: 10-Q | N6: 10-Q | O6: 10-K | P6: 10-Q
J7: Stmt Source Date | L7: 40870 | M7: 40780 | N7: 40689 | O7: 40613 | P7: 40515
J8: Stmt Update Type | L8: Updated | M8: Updated | N8: Updated | O8: Updated | P8: Updated
J10: Assets
J11: Cash and Short Term Investments | L11: 821 | M11: 890 | N11: 1424 | O11: 1712 | P11: 936
J12: Cash & Equivalents | K12: 755 | L12: 774 | M12: 552 | N12: 583 | O12: 587
J13: Short Term Investments | K13: 66 | L13: 116 | M13: 872 | N13: 1129 | O13: 349
J14: Total Receivables, Net | L14: 5713 | M14: 5722 | N14: 5721 | O14: 6153 | P14: 5955
J15: Accounts Receivable - Trade, Net | K15: 5713 | L15: 5722 | M15: 5721 | N15: 6153 | O15: 5955
J16: Accounts Receivable - Trade, Gross | K16: 6144 | L16: 6202 | M16: 6286 | N16: 6843 | O16: 6730
J17: Provision for Doubtful Accounts | K17: -431 | L17: -480 | M17: -565 | N17: -690 | O17: -775
N18: 7696 | O18: 7596 | P18: 9550
J19: Prepaid Expenses | L19: 0 | M19: 0 | N19: 0 | O19: 0 | P19: 0
J20: Other Current Assets, Total | L20: 1948 | M20: 1521 | N20: 1527 | O20: 1752 | P20: 1905
J21: Total Current Assets | L21: 18372 | M21: 16059 | N21: 16368 | O21: 17213 | P21: 18346
J23: Property/Plant/Equipment, Total - Net | L23: 29040 | M23: 28373 | N23: 25648 | O23: 25493 | P23: 25590
J24: Goodwill, Net | L24: 0 | M24: 0 | N24: 0 | O24: 0 | P24: 0
J25: Intangibles, Net | L25: 0 | M25: 0 | N25: 0 | O25: 0 | P25: 0
J26: Long Term Investments | L26: 0 | M26: 0 | N26: 0 | O26: 0 | P26: 0
J27: Note Receivable - Long Term | L27: 0 | M27: 0 | N27: 0 | O27: 0 | P27: 0
J28: Other Long Term Assets, Total | L28: 1035 | M28: 1067 | N28: 980 | O28: 999 | P28: 1013
J29: Other Assets, Total | L29: 0 | M29: 0 | N29: 0 | O29: 0 | P29: 0
J30: Total Assets | L30: 48447 | M30: 45499 | N30: 42996 | O30: 43705 | P30: 44949
J32: Liabilities and Shareholders' Equity
J33: Accounts Payable | L33: 8053 | M33: 6519 | N33: 6296 | O33: 6625 | P33: 7761
J34: Payable/Accrued | L34: 0 | M34: 0 | N34: 0 | O34: 0 | P34: 0
J35: Accrued Expenses | L35: 3273 | M35: 3721 | N35: 3229 | O35: 3326 | P35: 3179
J36: Notes Payable/Short Term Debt | L36: 0 | M36: 0 | N36: 0 | O36: 0 | P36: 0
J37: Current Port. of LT Debt/Capital Leases | L37: 2813 | M37: 1380 | N37: 1313 | O37: 119 | P37: 850
J38: Other Current Liabilities, Total | L38: 0 | M38: 0 | N38: 0 | O38: 0 | P38: 0
J39: Total Current Liabilities | L39: 14139 | M39: 11620 | N39: 10838 | O39: 10070 | P39: 11790
J41: Total Long Term Debt | L41: 16156 | M41: 16160 | N41: 14416 | O41: 15607 | P41: 15680
J42: Long Term Debt | K42: 16156 | L42: 16160 | M42: 14416 | N42: 15607 | O42: 15680
J43: Deferred Income Tax | L43: 1199 | M43: 969 | N43: 916 | O43: 934 | P43: 814
J44: Minority Interest | L44: 0 | M44: 0 | N44: 0 | O44: 0 | P44: 0
J45: Other Liabilities, Total | L45: 1689 | M45: 1644 | N45: 1596 | O45: 1607 | P45: 1786
J46: Total Liabilities | L46: 33183 | M46: 30393 | N46: 27766 | O46: 28218 | P46: 30070
J48: Redeemable Preferred Stock | L48: 0 | M48: 0 | N48: 0 | O48: 0 | P48: 0
J49: Preferred Stock - Non Redeemable, Net | L49: 0 | M49: 0 | N49: 0 | O49: 0 | P49: 0
J50: Common Stock | L50: 56 | M50: 56 | N50: 57 | O50: 59 | P50: 59
J51: Additional Paid-In Capital | L51: 3431 | M51: 3385 | N51: 3345 | O51: 3311 | P51: 3128
J52: Retained Earnings (Accumulated Deficit) | L52: 12340 | M52: 12213 | N52: 12398 | O52: 12698 | P52: 12254
J53: Other Equity, Total | L53: -563 | M53: -548 | N53: -570 | O53: -581 | P53: -562
J54: Total Equity | L54: 15264 | M54: 15106 | N54: 15230 | O54: 15487 | P54: 14879
J56: Total Liabilities & Shareholdersâ€™ Equity | L56: 48447 | M56: 45499 | N56: 42996 | O56: 43705 | P56: 44949
J59: Total Common Shares Outstanding | L59: 671.4 | M59: 675.2 | N59: 689 | O59: 704.04 | P59: 707.9
J60: Total Preferred Shares Outstanding | L60: 0 | M60: 0 | N60: 0 | O60: 0 | P60: 0
J62: Financial data in U.S. Dollars
J63: Values in Millions (Except for per share items)
J65: Business Type: Industry
J67: Financial statements are prepared in this standard format to allow direct comparisons of all companies and industries across multiple time frames.
J69: See 10K and 10Q SEC Filings for as reported statements
J71: DATA PROVIDERS

Sheet Financials2
B1: 2006 | C1: 2007 | D1: 2008 | E1: 2009 | F1: 2010
A2: Revenue
A3: Total Revenue | B3: =VLOOKUP($A3,incomeExpenseAnnual2,B$120,FALSE) -> 59490 | C3: =VLOOKUP($A3,incomeExpenseAnnual2,C$120,FALSE) -> 63367 | D3: =VLOOKUP($A3,incomeExpenseAnnual2,D$120,FALSE) -> 64948 | E3: =VLOOKUP($A3,incomeExpenseAnnual2,E$120,FALSE) -> 65357 | F3: =VLOOKUP($A3,incomeExpenseAnnual2,F$120,FALSE) -> 67390
A5: Cost of Revenue, Total | B5: =VLOOKUP($A5,incomeExpenseAnnual2,B$120,FALSE) -> 41073 | C5: 43766 | D5: 45766 | E5: 45583 | F5: 46585
A6: Gross Profit | B6: 18417 | C6: 19601 | D6: 19182 | E6: 19774 | F6: 20805
A8: Selling/General/Administrative Expenses, Total | B8: =VLOOKUP($A8,incomeExpenseAnnual2,B$120,FALSE) -> 11852 | C8: 12670 | D8: 12954 | E8: 13078 | F8: 13469
A9: Research & Development | B9: 0 | C9: 0 | D9: 0 | E9: 0 | F9: 0
A10: Depreciation/Amortization | B10: 1496 | C10: 1659 | D10: 1826 | E10: 2023 | F10: 2084
A11: Interest Expense (Income), Net Operating | B11: 0 | C11: 0 | D11: 0 | E11: 0 | F11: 0
A12: Unusual Expense (Income) | B12: 0 | C12: 0 | D12: 0 | E12: 0 | F12: 0
A13: Other Operating Expenses, Total | B13: 0 | C13: 0 | D13: 0 | E13: 0 | F13: 0
A14: Operating Income | B14: 4497 | C14: 4625 | D14: 3536 | E14: 3872 | F14: 4495
A16: Interest Income (Expense), Net Non-Operating | B16: =VLOOKUP($A16,incomeExpenseAnnual2,B$120,FALSE) -> 0 | C16: 0 | D16: 0 | E16: 0 | F16: 0
A17: Gain (Loss) on Sale of Assets | B17: 0 | C17: 0 | D17: 0 | E17: 0 | F17: 0
A18: Other, Net | B18: 0 | C18: 0 | D18: 0 | E18: 0 | F18: 0
A19: Income Before Tax | B19: 4497 | C19: 4625 | D19: 3536 | E19: 3872 | F19: 4495
A21: Income Tax - Total | B21: =VLOOKUP($A21,incomeExpenseAnnual2,B$120,FALSE) -> 1710 | C21: 1776 | D21: 1322 | E21: 1384 | F21: 1575
A22: Income After Tax | B22: 2787 | C22: 2849 | D22: 2214 | E22: 2488 | F22: 2920
A24: Minority Interest | B24: =VLOOKUP($A24,incomeExpenseAnnual2,B$120,FALSE) -> 0 | C24: 0 | D24: 0 | E24: 0 | F24: 0
A25: Equity In Affiliates | B25: 0 | C25: 0 | D25: 0 | E25: 0 | F25: 0
A26: U.S. GAAP Adjustment | B26: 0 | C26: 0 | D26: 0 | E26: 0 | F26: 0
A27: Net Income Before Extra. Items | B27: 2787 | C27: 2849 | D27: 2214 | E27: 2488 | F27: 2920
A29: Total Extraordinary Items | B29: =VLOOKUP($A29,incomeExpenseAnnual2,B$120,FALSE) -> 0 | C29: 0 | D29: 0 | E29: 0 | F29: 0
A30: Net Income | B30: 2787 | C30: 2849 | D30: 2214 | E30: 2488 | F30: 2920
A60: Assets
A61: Cash and Short Term Investments | B61: =VLOOKUP($A61,annualBalance3,B$120,FALSE) -> 813 | C61: 2450 | D61: 864 | E61: 2200 | F61: 1712
A62: Cash & Equivalents | B62: 0 | C62: 813 | D62: 599 | E62: 562 | F62: 583
A63: Short Term Investments | B63: 0 | C63: 0 | D63: 1851 | E63: 302 | F63: 1617
A64: Total Receivables, Net | B64: 6757 | C64: 8651 | D64: 8753 | E64: 7882 | F64: 7075
A65: Accounts Receivable - Trade, Net | B65: 0 | C65: 6194 | D65: 8054 | E65: 8084 | F65: 6966
A66: Total Inventory | B66: 6254 | C66: 6780 | D66: 6705 | E66: 7179 | F66: 7596
A67: Prepaid Expenses | B67: 0 | C67: 0 | D67: 0 | E67: 0 | F67: 0
A68: Other Current Assets, Total | B68: 882 | C68: 1025 | D68: 1166 | E68: 1163 | F68: 830
A69: Total Current Assets | B69: 14706 | C69: 18906 | D69: 17488 | E69: 18424 | F69: 17213
A71: Property/Plant/Equipment, Total - Net | B71: =VLOOKUP($A71,annualBalance3,B$120,FALSE) -> 21431 | C71: 24095 | D71: 25756 | E71: 25280 | F71: 25493
A72: Goodwill, Net | B72: 60 | C72: 60 | D72: 60 | E72: 59 | F72: 59
A73: Intangibles, Net | B73: 152 | C73: 148 | D73: 171 | E73: 180 | F73: 164
A74: Long Term Investments | B74: 0 | C74: 0 | D74: 0 | E74: 0 | F74: 0
A75: Note Receivable - Long Term | B75: 0 | C75: 0 | D75: 0 | E75: 0 | F75: 0
A76: Other Long Term Assets, Total | B76: 1000 | C76: 1351 | D76: 631 | E76: 590 | F76: 776
A77: Other Assets, Total | B77: 0 | C77: 0 | D77: 0 | E77: 0 | F77: 0
A78: Total Assets | B78: 37349 | C78: 44560 | D78: 44106 | E78: 44533 | F78: 43705
A80: Liabilities and Shareholders' Equity
A81: Accounts Payable | B81: =VLOOKUP($A81,annualBalance3,B$120,FALSE) -> 6575 | C81: 6721 | D81: 6337 | E81: 6511 | F81: 6625
A82: Payable/Accrued | B82: 0 | C82: 0 | D82: 0 | E82: 0 | F82: 0
A83: Accrued Expenses | B83: 2004 | C83: 2109 | D83: 2100 | E83: 2405 | F83: 2481
A84: Notes Payable/Short Term Debt | B84: 0 | C84: 0 | D84: 0 | E84: 0 | F84: 0
A85: Current Port. of LT Debt/Capital Leases | B85: 1362 | C85: 1964 | D85: 1262 | E85: 1696 | F85: 119
A86: Other Current Liabilities, Total | B86: 1176 | C86: 988 | D86: 813 | E86: 715 | F86: 845
A87: Total Current Liabilities | B87: 11117 | C87: 11782 | D87: 10512 | E87: 11327 | F87: 10070
A89: Total Long Term Debt | B89: =VLOOKUP($A89,annualBalance3,B$120,FALSE) -> 8675 | C89: 15126 | D89: 17490 | E89: 15118 | F89: 15607
A90: Long Term Debt | B90: 0 | C90: 8528 | D90: 15126 | E90: 17490 | F90: 15118
A91: Deferred Income Tax | B91: 577 | C91: 470 | D91: 455 | E91: 835 | F91: 934
A92: Minority Interest | B92: 0 | C92: 0 | D92: 0 | E92: 0 | F92: 0
A93: Other Liabilities, Total | B93: 1347 | C93: 1875 | D93: 1937 | E93: 1906 | F93: 1607
A94: Total Liabilities | B94: 21716 | C94: 29253 | D94: 30394 | E94: 29186 | F94: 28218
A96: Redeemable Preferred Stock | B96: =VLOOKUP($A96,annualBalance3,B$120,FALSE) -> 0 | C96: 0 | D96: 0 | E96: 0 | F96: 0
A97: Preferred Stock - Non Redeemable, Net | B97: 0 | C97: 0 | D97: 0 | E97: 0 | F97: 0
A98: Common Stock | B98: 72 | C98: 68 | D98: 63 | E98: 62 | F98: 59
A99: Additional Paid-In Capital | B99: 2387 | C99: 2656 | D99: 2762 | E99: 2919 | F99: 3311
A100: Retained Earnings (Accumulated Deficit) | B100: 13417 | C100: 12761 | D100: 11443 | E100: 12947 | F100: 12698
A101: Treasury Stock - Common
A102: Other Equity, Total | B102: -243 | C102: -178 | D102: -556 | E102: -581 | F102: -581
A103: Total Equity | B103: 15633 | C103: 15307 | D103: 13712 | E103: 15347 | F103: 15487
A105: Total Liabilities & Shareholdersâ€™ Equity | B105: =VLOOKUP($A105,annualBalance3,B$120,FALSE) -> 37349 | C105: =VLOOKUP($A105,annualBalance3,C$120,FALSE) -> 44560 | D105: =VLOOKUP($A105,annualBalance3,D$120,FALSE) -> 44106 | E105: =VLOOKUP($A105,annualBalance3,E$120,FALSE) -> 44533 | F105: =VLOOKUP($A105,annualBalance3,F$120,FALSE) -> 43705
A108: Total Common Shares Outstanding | B108: =VLOOKUP($A108,annualBalance3,B$120,FALSE) -> 859.77 | C108: 818.74 | D108: 752.71 | E108: 744.64 | F108: 704.04
A109: Total Preferred Shares Outstanding | B109: 0 | C109: 0 | D109: 0 | E109: 0 | F109: 0
B119: 2 | C119: 3 | D119: 4 | E119: 5 | F119: 6
B120: 7 | C120: 6 | D120: 5 | E120: 4 | F120: 3
A121: net Working Capital Calculation
A122: Current Assets | B122: =VLOOKUP("Total Current Assets",blanceSheet2,B$119,FALSE) -> 14706 | C122: =VLOOKUP("Total Current Assets",blanceSheet2,C$119,FALSE) -> 18906 | D122: =VLOOKUP("Total Current Assets",blanceSheet2,D$119,FALSE) -> 17488 | E122: =VLOOKUP("Total Current Assets",blanceSheet2,E$119,FALSE) -> 18424 | F122: =VLOOKUP("Total Current Assets",blanceSheet2,F$119,FALSE) -> 17213
A123: Current Liabilities | B123: =VLOOKUP("Total Current Liabilities",blanceSheet2,B$119,FALSE) -> 11117 | C123: =VLOOKUP("Total Current Liabilities",blanceSheet2,C$119,FALSE) -> 11782 | D123: =VLOOKUP("Total Current Liabilities",blanceSheet2,D$119,FALSE) -> 10512 | E123: =VLOOKUP("Total Current Liabilities",blanceSheet2,E$119,FALSE) -> 11327 | F123: =VLOOKUP("Total Current Liabilities",blanceSheet2,F$119,FALSE) -> 10070
A124: Total Working Capital | B124: =B122-B123 -> 3589 | C124: =C122-C123 -> 7124 | D124: 6976 | E124: 7097 | F124: 7143
A125: net working capital | C125: =C124-B124 -> 3535 | D125: =D124-C124 -> -148 | E125: 121 | F125: 46
A127: Principle Debt Repayment Calculation
A128: Total Long Term Debt | B128: =VLOOKUP("Total Long Term Debt",blanceSheet2,B119,FALSE) -> 8675 | C128: =VLOOKUP("Total Long Term Debt",blanceSheet2,C119,FALSE) -> 15126 | D128: =VLOOKUP("Total Long Term Debt",blanceSheet2,D119,FALSE) -> 17490 | E128: =VLOOKUP("Total Long Term Debt",blanceSheet2,E119,FALSE) -> 15118 | F128: =VLOOKUP("Total Long Term Debt",blanceSheet2,F119,FALSE) -> 15607
A129: Principle Debt Repayment | C129: =C128-B128 -> 6451 | D129: =D128-C128 -> 2364 | E129: -2372 | F129: 489
A131: Book Value | B131: =B78-B67-B72-B73 -> 37137 | C131: =C78-C67-C72-C73 -> 44352 | D131: 43875 | E131: 44294 | F131: 43482
B132: =RATE(9,,-B131,F131,0,0) -> 0.01768040033 | C132: =RATE(6,,-C131,F131,0) -> -0.003296345785 | D132: =RATE(4,,-D131,F131,0) -> -0.002246877591 | E132: =RATE(9,,-E131,F131,0) -> -0.00205368478
B133: 9 | C133: 6 | D133: 4 | E133: 2 | F133: 1
A135: Margins
A136: Gross Margin | B136: =B6/B3 -> 0.3095814423 | C136: =C6/C3 -> 0.309325043 | D136: 0.2953439675 | E136: 0.3025536668 | F136: 0.3087253302
A137: Operating Margin | B137: =B14/B3 -> 0.07559253656 | C137: =C14/C3 -> 0.07298751716 | D137: 0.05444355484 | E137: 0.05924384534 | F137: 0.06670129099
A138: Net Margin | B138: =B30/B3 -> 0.04684820978 | C138: =C30/C3 -> 0.04496031057 | D138: 0.03408880951 | E138: 0.03806784277 | F138: 0.0433298709

Sheet FCF
B2: FCFF Valuation
C3: Value of Equity | D3: =D11 -> 98830.51689
C4: Shares Outstanding | D4: =VLOOKUP("Shares Outstanding ",quote,2,FALSE) -> 671.6
C5: Valuation: | D5: =D3/D4 -> 147.1568149
B7: Value of Equity Calculation | F7: 2011 | G7: 2012 | H7: 2013 | I7: 2014 | J7: 2015
C8: Net Present Value of the Firm | D8: =NPV(WACC,F8:J8) -> 112725.5169 | F8: =I18 -> 10590.1 | G8: =J18 -> 12082.4 | H8: 13574.7 | I8: 15067 | J8: =SUM(M18:N18) -> 154553.7167
C9: Debt | D9: =longTermDebt2 -> 15607
C10: Cash | D10: =cash2 -> 1712
C11: Value of Equity | D11: =D8-D9+D10 -> 98830.51689
B15: Forcast Estimates | D15: =Financials!B1 -> 0 | E15: =Financials!C1 -> 0 | F15: =Financials!D1 -> 0 | G15: =Financials!E1 -> 0 | H15: =Financials!F1 -> 0 | I15: 2011 | J15: 2012 | K15: 2013 | L15: 2014 | M15: 2015 | N15: Future
D16: 2 | E16: 3 | F16: 4 | G16: 5 | H16: 6
C18: Free Cash Flow to the Firm | D18: 4283 | E18: 3102 | F18: 5917 | G18: 7937 | H18: 9327 | I18: 10590.1 | J18: 12082.4 | K18: 13574.7 | L18: 15067 | M18: 16559.3 | N18: =(M18*1+GGR)/(WACC-GGR) -> 137994.4167
C19: Free Cash Flow to Equity | N19: =(M19*1+GGR)/(WACC-GGR) -> 0.25
B21: Present Value of Free Cash Flows
B22: Free Cash Flow to the Firm
C23: EBIT | D23: =VLOOKUP("Operating Income",financials2,D16,FALSE) -> 4497 | E23: =VLOOKUP("Operating Income",financials2,E16,FALSE) -> 4625 | F23: =VLOOKUP("Operating Income",financials2,F16,FALSE) -> 3536 | G23: =VLOOKUP("Operating Income",financials2,G16,FALSE) -> 3872 | H23: =VLOOKUP("Operating Income",financials2,H16,FALSE) -> 4495
C24: - Taxes | D24: =VLOOKUP("Income Tax - Total",financials2,D16,FALSE) -> 1710 | E24: =VLOOKUP("Income Tax - Total",financials2,E16,FALSE) -> 1776 | F24: =VLOOKUP("Income Tax - Total",financials2,F16,FALSE) -> 1322 | G24: =VLOOKUP("Income Tax - Total",financials2,G16,FALSE) -> 1384 | H24: =VLOOKUP("Income Tax - Total",financials2,H16,FALSE) -> 1575
C25: EBIT after tax | D25: =D23-D24 -> 2787 | E25: =E23-E24 -> 2849 | F25: 2214 | G25: 2488 | H25: 2920
C26: + Depreciation Expense | D26: =VLOOKUP("Depreciation/Amortization",financials2,D16,FALSE) -> 1496 | E26: =VLOOKUP("Depreciation/Amortization",financials2,E16,FALSE) -> 1659 | F26: =VLOOKUP("Depreciation/Amortization",financials2,F16,FALSE) -> 1826 | G26: =VLOOKUP("Depreciation/Amortization",financials2,G16,FALSE) -> 2023 | H26: =VLOOKUP("Depreciation/Amortization",financials2,H16,FALSE) -> 2084
C27: - Capital Expenditures | D27: =VLOOKUP("Capital Expenditures",cashFlow2,D$16,FALSE) -> 0 | E27: =VLOOKUP("Capital Expenditures",cashFlow2,E$16,FALSE) -> -2129 | F27: =VLOOKUP("Capital Expenditures",cashFlow2,F$16,FALSE) -> -1729 | G27: =VLOOKUP("Capital Expenditures",cashFlow2,G$16,FALSE) -> -3547 | H27: =VLOOKUP("Capital Expenditures",cashFlow2,H$16,FALSE) -> -4369
C28: - Change in Net Working Capital | D28: =VLOOKUP("net working capital",netWorkingCapial3,D16,FALSE) -> 0 | E28: =VLOOKUP("net working capital",netWorkingCapial3,E16,FALSE) -> 3535 | F28: =VLOOKUP("net working capital",netWorkingCapial3,F16,FALSE) -> -148 | G28: =VLOOKUP("net working capital",netWorkingCapial3,G16,FALSE) -> 121 | H28: =VLOOKUP("net working capital",netWorkingCapial3,H16,FALSE) -> 46
C29: Operating Free Cash Flow (after tax) | D29: =D25+D26-D27-D28 -> 4283 | E29: =E25+E26-E27-E28 -> 3102 | F29: 5917 | G29: 7937 | H29: 9327
B31: Free Cash Flow to Equity
C32: EBIT | D32: =D23 -> 4497 | E32: =E23 -> 4625 | F32: 3536 | G32: 3872 | H32: 4495
C33: - Interest Expense | D33: =VLOOKUP("Interest Expense (Income), Net Operating",financials2,D16,FALSE) -> 0 | E33: =VLOOKUP("Interest Expense (Income), Net Operating",financials2,E16,FALSE) -> 0 | F33: =VLOOKUP("Interest Expense (Income), Net Operating",financials2,F16,FALSE) -> 0 | G33: =VLOOKUP("Interest Expense (Income), Net Operating",financials2,G16,FALSE) -> 0 | H33: =VLOOKUP("Interest Expense (Income), Net Operating",financials2,H16,FALSE) -> 0
C34: EBT before tax | D34: =D32-D33 -> 4497 | E34: =E32-E33 -> 4625 | F34: 3536 | G34: 3872 | H34: 4495
C35: - Taxes | D35: =D24 -> 1710 | E35: =E24 -> 1776 | F35: 1322 | G35: 1384 | H35: 1575
C36: Profit After Tax | D36: =D34-D35 -> 2787 | E36: =E34-E35 -> 2849 | F36: 2214 | G36: 2488 | H36: 2920
C37: + Depreciation Expense | D37: =D26 -> 1496 | E37: =E26 -> 1659 | F37: 1826 | G37: 2023 | H37: 2084
C38: - Capital Expenditures | D38: =D27 -> 0 | E38: =E27 -> -2129 | F38: -1729 | G38: -3547 | H38: -4369
C39: - Change in Net Working Capital | D39: =D28 -> 0 | E39: =E28 -> 3535 | F39: -148 | G39: 121 | H39: 46
C40: - Principal Debt Repayments (LTD-PrevLTD) | D40: =VLOOKUP("Principle Debt Repayment",debtRepayment2,D16,FALSE) -> 0 | E40: =VLOOKUP("Principle Debt Repayment",debtRepayment2,E16,FALSE) -> 6451 | F40: =VLOOKUP("Principle Debt Repayment",debtRepayment2,F16,FALSE) -> 2364 | G40: =VLOOKUP("Principle Debt Repayment",debtRepayment2,G16,FALSE) -> -2372 | H40: =VLOOKUP("Principle Debt Repayment",debtRepayment2,H16,FALSE) -> 489
C41: Free Cash Flow to Equity | D41: =D36+D37-D38-D39-D40 -> 4283 | E41: =E36+E37-E38-E39-E40 -> -3349 | F41: 3553 | G41: 10309 | H41: 8838

Sheet Summary
B1: Quote | E1: Historical Prices
B2: More | E2: More
B4: Autos | E4: Autos
B5: Careers & Jobs | E5: Entertainment
B6: Celebrities | E6: Lifestyle
B7: Delish | E7: Online dating
B8: Entertainment | E8: Video
B10: Games | E10: Careers & Jobs
B11: Glo | E11: Games
B12: Health, Diet & Fitness | E12: Local Edition
B13: Lifestyle | E13: Real Estate & Rentals
B14: Local Edition | E14: Weather
B16: Money | E16: Celebrities
B17: News | E17: Glo
B18: Online dating | E18: Money
B19: Real Estate & Rentals | E19: Sports
B20: Sports | E20: White Pages
B22: Travel | E22: Delish
B23: Video | E23: Health, Diet & Fitness
B24: Weather | E24: News
B25: White Pages | E25: Travel
B26: Full MSN Index | E26: Full MSN Index
B27: Hotmail | E27: Hotmail
B29: Inbox | E29: Inbox
B30: Calendar | E30: Calendar
B31: Contacts | E31: Contacts
B32: Send e-mail | E32: Send e-mail
B33: Messenger | E33: Messenger
B34: Bing | E34: Bing
B35: Make MSN your homepage Make Bing your decision engine | E35: Make MSN your homepage Make Bing your decision engine
B36: Welcome | E36: Welcome
B37: Money | E37: Money
B38: Bing Search: | E38: Bing Search:
B39: Money | E39: Money
B40: | | E40: |
B41: Web | E41: Web
B42: Bing search: | E42: Bing search:
B43: Page options | E43: Page options
B45: Make text larger | E45: Make text larger
B46: enabledShow search suggestions | E46: enabledShow search suggestions
B47: Help | E47: Help
B48: | | E48: |
B49: Sign in | E49: Sign in
B50: Follow | E50: Home
B51: Home
E52: News
B53: Home
B54: News | E54: Headlines
B55: Investing | E55: Video
B56: Personal Finance | E56: Investing
B57: My Money
B58: Taxes | E58: portfolio manager
B59: Real Estate | E59: markets
B60: Careers | E60: stocks
B61: Autos | E61: mutual funds
B62: News | E62: etfs
E63: broker center
B64: headlines | E64: investor pro
B65: Video | E65: Personal Finance
B66: Investing
E67: Saving & Budgeting
B68: Portfolio Manager | E68: Credit & Debt
B69: Markets | E69: Loans
B70: Stocks | E70: Retirement
B71: Mutual Funds | E71: Insurance
B72: ETFS | E72: Taxes
B73: Broker Center | E73: Your Money
B74: Investor Pro | E74: My Money
B75: Personal Finance
E76: Real Estate
B77: Saving & Budgeting
B78: Credit & Debt | E78: Careers
B79: Loans
B80: Retirement | E80: Autos
B81: Insurance
B82: Taxes | E82: Target Corp (NYSE : TGT)
B83: your money | E83: Trade now
B84: My Money | E84: Add to Watchlist
E85: Get chart
B86: Real Estate | E86: Print report
E87: Find prices for: 53.50Up+0.03+0.06%Delayed
B88: Careers | E88: MORE ABOUT TGT
E89: SUMMARY
B90: Autos | E90: Quote
E91: Options
B92: Target Corp (NYSE: TGT) | E92: Historical Prices
B93: Trade now | E93: CHARTS
B94: Add to Watchlist | E94: Basic
B95: Get Chart | E95: NEWS
B96: Print report | E96: Headlines
B97: 53.50Up+0.03 +0.06% | E97: Key Developments
B98: MORE ON TGT | E98: FUNDAMENTALS
B99: SUMMARY | E99: Financial Highlights
B100: Quote | E100: Profile
B101: Options | E101: Key Ratios
B102: Historical Prices | E102: 10-Year Summary
B103: CHARTS | E103: Earnings
B104: Interactive Chart | E104: SEC Filings
B105: NEWS | E105: RATINGS/ANALYSIS
B106: Headlines | E106: StockScouter Report
B107: Key Developments | E107: Analyst Ratings
B108: FUNDAMENTALS | E108: INSIDER ACTION
B109: Financial Highlights | E109: Insider Trades
B110: Profile | E110: Ownership
B111: Key Ratios | E111: FINANCIALS
B112: 10-Year Summary | E112: Income Statement
B113: Earnings | E113: Balance Sheet
B114: SEC Filings | E114: Cash Flow
B115: RATINGS/ANALYSIS | E115: 10-Year Summary
B116: StockScouter Report
B117: Analyst Ratings | E117: Ad Choice
B118: INSIDER ACTION
B119: Insider Trades | E119: Feedback
B120: Ownership
B121: FINANCIALS | E121: TARGET CORPDownload file
B122: Income Statement | E122: Date | F122: High | G122: Low | H122: Open | I122: Close | J122: Volume
B123: Balance Sheet | E123: 2011-12-09 | F123: 54.3 | G123: 52.865 | H123: 53.2 | I123: 53.5 | J123: 26020100
B124: Cash Flow | E124: 2011-12-02 | F124: 53.35 | G124: 51.35 | H124: 52.412 | I124: 52.88 | J124: 35958700
B125: 10-Year Summary | E125: 2011-11-25 | F125: 53.01 | G125: 51.21 | H125: 52.05 | I125: 51.21 | J125: 18856400
E126: 2011-11-18 | F126: 54.99 | G126: 52.16 | H126: 52.5 | I126: 53 | J126: 35934600
B127: DETAILS | E127: 2011-11-11 | F127: 53.14 | G127: 51.53 | H127: 52.28 | I127: 53.07 | J127: 23168900
B128: Symbol | C128: Value ($) | E128: 2011-11-04 | F128: 55.4 | G128: 51.12 | H128: 54.73 | I128: 52.17 | J128: 48253100
B129: Previous Close | C129: 53.47 | E129: 2011-10-28 | F129: 56 | G129: 54.11 | H129: 54.41 | I129: 55.24 | J129: 27691600
B130: Open | C130: 53.72 | E130: 2011-10-21 | F130: 54.65 | G130: 52.62 | H130: 52.66 | I130: 54.64 | J130: 24440300
B131: Day's High | C131: 53.9 | E131: 2011-10-14 | F131: 53.59 | G131: 51.84 | H131: 52.07 | I131: 52.95 | J131: 26486500
B132: Day's Low | C132: 53.29 | E132: 2011-10-07 | F132: 52.42 | G132: 47.62 | H132: 48.68 | I132: 51.56 | J132: 45693600
B133: Volume | C133: 3.98 Mil | E133: 2011-09-30 | F133: 51.75 | G133: 49.01 | H133: 49.52 | I133: 49.04 | J133: 37855600
B134: Avg Daily Vol (13 Wks) | C134: 6.66 Mil | E134: 2011-09-23 | F134: 53.13 | G134: 48.62 | H134: 51.92 | I134: 49.14 | J134: 36937100
B135: Bid | C135: 52.19 | E135: 2011-09-16 | F135: 53.39 | G135: 49.08 | H135: 49.43 | I135: 52.66 | J135: 34832500
B136: Bid Size | C136: 200 | E136: 2011-09-09 | F136: 51.41 | G136: 48.36 | H136: 48.77 | I136: 50.02 | J136: 28688900
B137: Ask | C137: 53.8 | E137: 2011-09-02 | F137: 52.24 | G137: 49.71 | H137: 51.3 | I137: 49.71 | J137: 32908700
B138: Ask Size | C138: 1000 | E138: 2011-08-26 | F138: 51.43 | G138: 48.84 | H138: 50.63 | I138: 50.83 | J138: 26574700
B139: 52-Wk High | C139: 60.97 | E139: 2011-08-19 | F139: 52.26 | G139: 47.82 | H139: 48.68 | I139: 49.92 | J139: 59381800
B140: 52-Wk Low | C140: 45.28 | E140: 2011-08-12 | F140: 49 | G140: 45.28 | H140: 47.6 | I140: 48.48 | J140: 56134400
B141: Dividend Rate | C141: 1.2 | E141: 2011-08-05 | F141: 51.68 | G141: 47.3 | H141: 51.67 | I141: 48.65 | J141: 50793400
B142: Yield | C142: 2.24 | E142: 2011-07-29 | F142: 51.83 | G142: 50.25 | H142: 51.39 | I142: 51.49 | J142: 28420000
B143: Quotes delayed 15 min | E143: 2011-07-22 | F143: 52 | G143: 50.35 | H143: 50.91 | I143: 51.81 | J143: 29085800
B144: Last trade 12/9/2011 4:00 PM ET | E144: 2011-07-15 | F144: 51.46 | G144: 50.39 | H144: 50.68 | I144: 51.09 | J144: 32421800
B145: STOCKSCOUTER | E145: 2011-07-08 | F145: 52.13 | G145: 47.45 | H145: 47.96 | I145: 51.14 | J145: 44476000
B146: 6 | E146: 2011-07-01 | F146: 47.97 | G146: 45.65 | H146: 45.93 | I146: 47.93 | J146: 32648800
B147: Rating: 6 out of 10 | E147: 2011-06-24 | F147: 47.78 | G147: 46.32 | H147: 46.49 | I147: 46.33 | J147: 36206500
B148: How StockScouter Works | E148: 2011-06-17 | F148: 47.4901 | G148: 46.15 | H148: 46.73 | I148: 46.53 | J148: 33145400
E149: 2011-06-10 | F149: 47.96 | G149: 46.51 | H149: 47.32 | I149: 46.7 | J149: 33392300
B150: Analyst Recommendation: Moderate Buy | E150: 2011-06-03 | F150: 49.77 | G150: 47.33 | H150: 49.6 | I150: 47.4 | J150: 30123100
B151: FINANCIAL HIGHLIGHTS | E151: 2011-05-27 | F151: 49.83 | G151: 48.935 | H151: 49.37 | I151: 49.37 | J151: 26406100
B152: Symbol | C152: Value ($) | E152: 2011-05-20 | F152: 51.56 | G152: 48.8 | H152: 51.33 | I152: 49.69 | J152: 48908800
B153: Sales* | C153: 69.24 Bil | E153: 2011-05-16 | F153: 0.250 Ex-dividend
B154: Income* | C154: 2.98 Bil | E154: 2011-05-13 | F154: 52.12 | G154: 49.81 | H154: 50.47 | I154: 51.52 | J154: 31133300
B155: Sales Growth* | C155: 0.031 | E155: 2011-05-06 | F155: 50.91 | G155: 48.51 | H155: 49.34 | I155: 50.51 | J155: 48304000
B156: Income Growth* | C156: 0.174 | E156: 2011-04-29 | F156: 50.85 | G156: 49.02 | H156: 49.87 | I156: 49.1 | J156: 29240700
B157: Net Profit Margin | C157: 0.0431 | E157: 2011-04-21 | F157: 50.79 | G157: 49.46 | H157: 49.94 | I157: 49.9 | J157: 20801200
B158: Debt/Equity Ratio | C158: 1.24 | E158: 2011-04-15 | F158: 50.64 | G158: 49.13 | H158: 49.53 | I158: 50.24 | J158: 30693500
B159: Beta | C159: 0.89 | E159: 2011-04-08 | F159: 51.13 | G159: 49.1 | H159: 50.5 | I159: 49.53 | J159: 38342100
B160: EPS | C160: 4.28 | E160: 2011-04-01 | F160: 50.58 | G160: 49.03 | H160: 50.17 | I160: 50.36 | J160: 35500900
B161: Forward P/E | C161: 12.36 | E161: 2011-03-25 | F161: 51.05 | G161: 49.89 | H161: 50.99 | I161: 49.95 | J161: 33547500
B162: P/E | C162: 12.53 | E162: 2011-03-18 | F162: 51.35 | G162: 49.45 | H162: 51.35 | I162: 49.99 | J162: 37040200
B163: Market Cap | C163: 35.93 Bil | E163: 2011-03-11 | F163: 52.155 | G163: 50.9 | H163: 51.82 | I163: 51.53 | J163: 32370600
B164: Shares Outstanding | C164: 671.6 | E164: 2011-03-04 | F164: 52.98 | G164: 51.25 | H164: 52.3 | I164: 51.65 | J164: 50364700
B165: More | E165: 2011-02-25 | F165: 52.71 | G165: 50 | H165: 51.54 | I165: 52.36 | J165: 59370800
B166: * last 12 months | E166: 2011-02-18 | F166: 54.49 | G166: 51.75 | H166: 54.19 | I166: 51.9 | J166: 47627400
B167: TOP FUNDS HOLDING | E167: 2011-02-14 | F167: 0.250 Ex-dividend
B168: NAME | C168: % OWN | E168: 2011-02-11 | F168: 55.53 | G168: 54.15 | H168: 54.42 | I168: 54.39 | J168: 25002900
B169: Vanguard Total Stock Market Index Fund | C169: 0.011 | E169: 2011-02-04 | F169: 55.04 | G169: 53.06 | H169: 54.91 | I169: 54.27 | J169: 38582100
B170: Vanguard Wellington Fund, Inc. | C170: 0.011 | E170: 2011-01-28 | F170: 56.24 | G170: 54.27 | H170: 55.58 | I170: 54.35 | J170: 31589800
B171: CREF Stock Account | C171: 0.011 | E171: 2011-01-21 | F171: 56.44 | G171: 53.86 | H171: 55.1 | I171: 55.73 | J171: 31989400
B172: More | E172: 2011-01-14 | F172: 56.3981 | G172: 54.99 | H172: 55.3 | I172: 55.07 | J172: 40837700
B173: INTRADAY CHART Full-page chart | E173: 2011-01-07 | F173: 60.97 | G173: 54.29 | H173: 60.26 | I173: 55.05 | J173: 57914500
B174: 1D 5D 10D 1M 3M 1Y 3Y 10Y | E174: 2010-12-31 | F174: 60.51 | G174: 59.73 | H174: 60.06 | I174: 60.13 | J174: 10266600
B175: NEWS | E175: 2010-12-23 | F175: 60.65 | G175: 58.34 | H175: 58.84 | I175: 60.26 | J175: 17195600
B176: TOP | E176: 2010-12-17 | F176: 59.61 | G176: 58.43 | H176: 59.23 | I176: 58.52 | J176: 23007300
B177: 1 Stock Making Money the Right Way | E177: 2010-12-10 | F177: 60 | G177: 58.635 | H177: 59 | I177: 58.95 | J177: 20011300
B178: Motley Fool | 12/9/2011
B179: Amazon Stocked on Toys Rivals Don’t Have | E179: Page generated 12/10/2011 6:39 PM Eastern Standard Time
B180: Bloomberg | 12/9/2011
B181: 6 Big Turnaround Hopes for 2012 | E181: DATA PROVIDERS
B182: InvestorPlace | 12/9/2011
B183: A Look at Wal-Mart's Bribery Probe | E183: Copyright © 2011 Microsoft. All rights reserved.
B184: Motley Fool | 12/9/2011
B185: How to Profit From Lower Commodity Prices | E185: Quotes are real-time for NASDAQ, NYSE and AMEX. See delay times for other exchanges.
B186: InvestorPlace | 12/9/2011
B187: Does Sears deserve a $6 price target? | E187: Fundamental company data and historical chart data provided by Thomson Reuters (click for restrictions). Real-time quotes provided by BATS Exchange. Real-time index quotes and delayed quotes supplied by Interactive Data Real-Time Services. Fund summary, fund performance and dividend data provided by Morningstar Inc. Analyst recommendations provided by Zacks Investment Research. StockScouter data provided by Verus Analytics. IPO data provided by Hoover's Inc. Index membership data provided by SIX Telekurs.
B188: Top Stocks | 12/9/2011
B189: S&P 500 Analyst Estimate Revisions for Dec. 9 | E189: Japanese stock price data provided by Nomura Research Institute Ltd.; quotes delayed 20 minutes. Canadian fund data provided by CANNEX Financial Exchanges Ltd.
B190: Bloomberg | 12/9/2011
B191: Holiday Hiring Brings Joy to the Unemployed | E191: Privacy
B192: TheStreet.com | 12/9/2011 | E192: Legal
B193: Cyber Monday Comes Twice as Sears Bargains Crimp Margins: Retail | E193: Advertise
B194: Bloomberg | 12/9/2011 | E194: MSN Worldwide
B195: Amazon Is Tier 1 | E195: Help
B196: Motley Fool | 12/8/2011 | E196: About our ads
B197: View all news | E197: Feedback
B198: PRESS REL | E198: Site map
B199: Target Announces the Almost Last Minute Sale Featuring Three Days of Deep Discounts Beginning Dec. 8 | E199: RSS
B200: Business Wire | 12/6/2011 | E200: © 2011 Microsoft
B201: Target Announces Big Toy Event Featuring Buy One, Get One 50 Percent Off On Biggest Toy Brands
B202: Business Wire | 12/1/2011
B203: Target Reports November Sales Results
B204: Business Wire | 12/1/2011
B205: A Change in Tides - Featured Research on Target Corporation and Hansen Natural Corporation
B206: Market Wire | 11/29/2011
... 57 more rows

Sheet Fundamentals
B1: Profile | E1: Financial Highlights | J1: Key Ratios: Growth | O1: Key Ratios: Price Ratios | T1: Key Ratios: Profit Mgn | Y1: Key Ratios: Financial Conditions | AD1: Key Ratios: Inv Returns | AI1: Key Ratios: Management Efficiency | AN1: Key Ratios: 10 Year Summary | AU1: 10 Year Summary | BC1: Earnings
B2: More | E2: More | J2: More | O2: More | T2: More | Y2: More | AD2: More | AI2: More | AN2: More | AU2: More | BC2: More
B4: Autos | E4: Autos | J4: Autos | O4: Autos | T4: Autos | Y4: Autos | AD4: Autos | AI4: Autos | AN4: Autos | AU4: Autos | BC4: Autos
B5: Careers & Jobs | E5: Careers & Jobs | J5: Entertainment | O5: Entertainment | T5: Entertainment | Y5: Entertainment | AD5: Entertainment | AI5: Entertainment | AN5: Entertainment | AU5: Careers & Jobs | BC5: Careers & Jobs
B6: Celebrities | E6: Celebrities | J6: Lifestyle | O6: Lifestyle | T6: Lifestyle | Y6: Lifestyle | AD6: Lifestyle | AI6: Lifestyle | AN6: Lifestyle | AU6: Celebrities | BC6: Celebrities
B7: Delish | E7: Delish | J7: Online dating | O7: Online dating | T7: Online dating | Y7: Online dating | AD7: Online dating | AI7: Online dating | AN7: Online dating | AU7: Delish | BC7: Delish
B8: Entertainment | E8: Entertainment | J8: Video | O8: Video | T8: Video | Y8: Video | AD8: Video | AI8: Video | AN8: Video | AU8: Entertainment | BC8: Entertainment
B10: Games | E10: Games | J10: Careers & Jobs | O10: Careers & Jobs | T10: Careers & Jobs | Y10: Careers & Jobs | AD10: Careers & Jobs | AI10: Careers & Jobs | AN10: Careers & Jobs | AU10: Games | BC10: Games
B11: Glo | E11: Glo | J11: Games | O11: Games | T11: Games | Y11: Games | AD11: Games | AI11: Games | AN11: Games | AU11: Glo | BC11: Glo
B12: Health, Diet & Fitness | E12: Health, Diet & Fitness | J12: Local Edition | O12: Local Edition | T12: Local Edition | Y12: Local Edition | AD12: Local Edition | AI12: Local Edition | AN12: Local Edition | AU12: Health, Diet & Fitness | BC12: Health, Diet & Fitness
B13: Lifestyle | E13: Lifestyle | J13: Real Estate & Rentals | O13: Real Estate & Rentals | T13: Real Estate & Rentals | Y13: Real Estate & Rentals | AD13: Real Estate & Rentals | AI13: Real Estate & Rentals | AN13: Real Estate & Rentals | AU13: Lifestyle | BC13: Lifestyle
B14: Local Edition | E14: Local Edition | J14: Weather | O14: Weather | T14: Weather | Y14: Weather | AD14: Weather | AI14: Weather | AN14: Weather | AU14: Local Edition | BC14: Local Edition
B16: Money | E16: Money | J16: Celebrities | O16: Celebrities | T16: Celebrities | Y16: Celebrities | AD16: Celebrities | AI16: Celebrities | AN16: Celebrities | AU16: Money | BC16: Money
B17: News | E17: News | J17: Glo | O17: Glo | T17: Glo | Y17: Glo | AD17: Glo | AI17: Glo | AN17: Glo | AU17: News | BC17: News
B18: Online dating | E18: Online dating | J18: Money | O18: Money | T18: Money | Y18: Money | AD18: Money | AI18: Money | AN18: Money | AU18: Online dating | BC18: Online dating
B19: Real Estate & Rentals | E19: Real Estate & Rentals | J19: Sports | O19: Sports | T19: Sports | Y19: Sports | AD19: Sports | AI19: Sports | AN19: Sports | AU19: Real Estate & Rentals | BC19: Real Estate & Rentals
B20: Sports | E20: Sports | J20: White Pages | O20: White Pages | T20: White Pages | Y20: White Pages | AD20: White Pages | AI20: White Pages | AN20: White Pages | AU20: Sports | BC20: Sports
B22: Travel | E22: Travel | J22: Delish | O22: Delish | T22: Delish | Y22: Delish | AD22: Delish | AI22: Delish | AN22: Delish | AU22: Travel | BC22: Travel
B23: Video | E23: Video | J23: Health, Diet & Fitness | O23: Health, Diet & Fitness | T23: Health, Diet & Fitness | Y23: Health, Diet & Fitness | AD23: Health, Diet & Fitness | AI23: Health, Diet & Fitness | AN23: Health, Diet & Fitness | AU23: Video | BC23: Video
B24: Weather | E24: Weather | J24: News | O24: News | T24: News | Y24: News | AD24: News | AI24: News | AN24: News | AU24: Weather | BC24: Weather
B25: White Pages | E25: White Pages | J25: Travel | O25: Travel | T25: Travel | Y25: Travel | AD25: Travel | AI25: Travel | AN25: Travel | AU25: White Pages | BC25: White Pages
B26: Full MSN Index | E26: Full MSN Index | J26: Full MSN Index | O26: Full MSN Index | T26: Full MSN Index | Y26: Full MSN Index | AD26: Full MSN Index | AI26: Full MSN Index | AN26: Full MSN Index | AU26: Full MSN Index | BC26: Full MSN Index
B27: Hotmail | E27: Hotmail | J27: Hotmail | O27: Hotmail | T27: Hotmail | Y27: Hotmail | AD27: Hotmail | AI27: Hotmail | AN27: Hotmail | AU27: Hotmail | BC27: Hotmail
B29: Inbox | E29: Inbox | J29: Inbox | O29: Inbox | T29: Inbox | Y29: Inbox | AD29: Inbox | AI29: Inbox | AN29: Inbox | AU29: Inbox | BC29: Inbox
B30: Calendar | E30: Calendar | J30: Calendar | O30: Calendar | T30: Calendar | Y30: Calendar | AD30: Calendar | AI30: Calendar | AN30: Calendar | AU30: Calendar | BC30: Calendar
B31: Contacts | E31: Contacts | J31: Contacts | O31: Contacts | T31: Contacts | Y31: Contacts | AD31: Contacts | AI31: Contacts | AN31: Contacts | AU31: Contacts | BC31: Contacts
B32: Send e-mail | E32: Send e-mail | J32: Send e-mail | O32: Send e-mail | T32: Send e-mail | Y32: Send e-mail | AD32: Send e-mail | AI32: Send e-mail | AN32: Send e-mail | AU32: Send e-mail | BC32: Send e-mail
B33: Messenger | E33: Messenger | J33: Messenger | O33: Messenger | T33: Messenger | Y33: Messenger | AD33: Messenger | AI33: Messenger | AN33: Messenger | AU33: Messenger | BC33: Messenger
B34: Bing | E34: Bing | J34: Bing | O34: Bing | T34: Bing | Y34: Bing | AD34: Bing | AI34: Bing | AN34: Bing | AU34: Bing | BC34: Bing
B35: Make MSN your homepage Make Bing your decision engine | E35: Make MSN your homepage Make Bing your decision engine | J35: Make MSN your homepageMake Bing your decision engine | O35: Make MSN your homepageMake Bing your decision engine | T35: Make MSN your homepageMake Bing your decision engine | Y35: Make MSN your homepageMake Bing your decision engine | AD35: Make MSN your homepageMake Bing your decision engine | AI35: Make MSN your homepageMake Bing your decision engine | AN35: Make MSN your homepageMake Bing your decision engine | AU35: Make MSN your homepage Make Bing your decision engine | BC35: Make MSN your homepage Make Bing your decision engine
B36: Welcome | E36: Welcome | J36: Welcome | O36: Welcome | T36: Welcome | Y36: Welcome | AD36: Welcome | AI36: Welcome | AN36: Welcome | AU36: Welcome | BC36: Welcome
B37: Money | E37: Money | J37: Money | O37: Money | T37: Money | Y37: Money | AD37: Money | AI37: Money | AN37: Money | AU37: Money | BC37: Money
B38: Bing Search: | E38: Bing Search: | J38: Bing Search: | O38: Bing Search: | T38: Bing Search: | Y38: Bing Search: | AD38: Bing Search: | AI38: Bing Search: | AN38: Bing Search: | AU38: Bing Search: | BC38: Bing Search:
B39: Money | E39: Money | J39: Money | O39: Money | T39: Money | Y39: Money | AD39: Money | AI39: Money | AN39: Money | AU39: Money | BC39: Money
B40: | | E40: | | J40: | | O40: | | T40: | | Y40: | | AD40: | | AI40: | | AN40: | | AU40: | | BC40: |
B41: Web | E41: Web | J41: Web | O41: Web | T41: Web | Y41: Web | AD41: Web | AI41: Web | AN41: Web | AU41: Web | BC41: Web
B42: Bing search: | E42: Bing search: | J42: Bing search: | O42: Bing search: | T42: Bing search: | Y42: Bing search: | AD42: Bing search: | AI42: Bing search: | AN42: Bing search: | AU42: Bing search: | BC42: Bing search:
B43: Page options | E43: Page options | J43: Page options | O43: Page options | T43: Page options | Y43: Page options | AD43: Page options | AI43: Page options | AN43: Page options | AU43: Page options | BC43: Page options
B45: Make text larger | E45: Make text larger | J45: Make text larger | O45: Make text larger | T45: Make text larger | Y45: Make text larger | AD45: Make text larger | AI45: Make text larger | AN45: Make text larger | AU45: Make text larger | BC45: Make text larger
B46: enabledShow search suggestions | E46: enabledShow search suggestions | J46: enabledShow search suggestions | O46: enabledShow search suggestions | T46: enabledShow search suggestions | Y46: enabledShow search suggestions | AD46: enabledShow search suggestions | AI46: enabledShow search suggestions | AN46: enabledShow search suggestions | AU46: enabledShow search suggestions | BC46: enabledShow search suggestions
B47: Help | E47: Help | J47: Help | O47: Help | T47: Help | Y47: Help | AD47: Help | AI47: Help | AN47: Help | AU47: Help | BC47: Help
B48: | | E48: | | J48: | | O48: | | T48: | | Y48: | | AD48: | | AI48: | | AN48: | | AU48: | | BC48: |
B49: Sign in | E49: Sign in | J49: Sign in | O49: Sign in | T49: Sign in | Y49: Sign in | AD49: Sign in | AI49: Sign in | AN49: Sign in | AU49: Sign in | BC49: Sign in
B50: Follow | E50: Follow | J50: Home | O50: Home | T50: Home | Y50: Home | AD50: Home | AI50: Home | AN50: Home | AU50: Follow | BC50: Follow
B51: Home | E51: Home | AU51: Home | BC51: Home
J52: News | O52: News | T52: News | Y52: News | AD52: News | AI52: News | AN52: News
B53: Home | E53: Home | AU53: Home | BC53: Home
B54: News | E54: News | J54: Headlines | O54: Headlines | T54: Headlines | Y54: Headlines | AD54: Headlines | AI54: Headlines | AN54: Headlines | AU54: News | BC54: News
B55: Investing | E55: Investing | J55: Video | O55: Video | T55: Video | Y55: Video | AD55: Video | AI55: Video | AN55: Video | AU55: Investing | BC55: Investing
B56: Personal Finance | E56: Personal Finance | J56: Investing | O56: Investing | T56: Investing | Y56: Investing | AD56: Investing | AI56: Investing | AN56: Investing | AU56: Personal Finance | BC56: Personal Finance
B57: My Money | E57: My Money | AU57: My Money | BC57: My Money
B58: Taxes | E58: Taxes | J58: portfolio manager | O58: portfolio manager | T58: portfolio manager | Y58: portfolio manager | AD58: portfolio manager | AI58: portfolio manager | AN58: portfolio manager | AU58: Taxes | BC58: Taxes
B59: Real Estate | E59: Real Estate | J59: markets | O59: markets | T59: markets | Y59: markets | AD59: markets | AI59: markets | AN59: markets | AU59: Real Estate | BC59: Real Estate
B60: Careers | E60: Careers | J60: stocks | O60: stocks | T60: stocks | Y60: stocks | AD60: stocks | AI60: stocks | AN60: stocks | AU60: Careers | BC60: Careers
B61: Autos | E61: Autos | J61: mutual funds | O61: mutual funds | T61: mutual funds | Y61: mutual funds | AD61: mutual funds | AI61: mutual funds | AN61: mutual funds | AU61: Autos | BC61: Autos
B62: News | E62: News | J62: etfs | O62: etfs | T62: etfs | Y62: etfs | AD62: etfs | AI62: etfs | AN62: etfs | AU62: News | BC62: News
J63: broker center | O63: broker center | T63: broker center | Y63: broker center | AD63: broker center | AI63: broker center | AN63: broker center
B64: headlines | E64: headlines | J64: investor pro | O64: investor pro | T64: investor pro | Y64: investor pro | AD64: investor pro | AI64: investor pro | AN64: investor pro | AU64: headlines | BC64: headlines
B65: Video | E65: Video | J65: Personal Finance | O65: Personal Finance | T65: Personal Finance | Y65: Personal Finance | AD65: Personal Finance | AI65: Personal Finance | AN65: Personal Finance | AU65: Video | BC65: Video
B66: Investing | E66: Investing | AU66: Investing | BC66: Investing
J67: Saving & Budgeting | O67: Saving & Budgeting | T67: Saving & Budgeting | Y67: Saving & Budgeting | AD67: Saving & Budgeting | AI67: Saving & Budgeting | AN67: Saving & Budgeting
B68: Portfolio Manager | E68: Portfolio Manager | J68: Credit & Debt | O68: Credit & Debt | T68: Credit & Debt | Y68: Credit & Debt | AD68: Credit & Debt | AI68: Credit & Debt | AN68: Credit & Debt | AU68: Portfolio Manager | BC68: Portfolio Manager
B69: Markets | E69: Markets | J69: Loans | O69: Loans | T69: Loans | Y69: Loans | AD69: Loans | AI69: Loans | AN69: Loans | AU69: Markets | BC69: Markets
B70: Stocks | E70: Stocks | J70: Retirement | O70: Retirement | T70: Retirement | Y70: Retirement | AD70: Retirement | AI70: Retirement | AN70: Retirement | AU70: Stocks | BC70: Stocks
B71: Mutual Funds | E71: Mutual Funds | J71: Insurance | O71: Insurance | T71: Insurance | Y71: Insurance | AD71: Insurance | AI71: Insurance | AN71: Insurance | AU71: Mutual Funds | BC71: Mutual Funds
B72: ETFS | E72: ETFS | J72: Taxes | O72: Taxes | T72: Taxes | Y72: Taxes | AD72: Taxes | AI72: Taxes | AN72: Taxes | AU72: ETFS | BC72: ETFS
B73: Broker Center | E73: Broker Center | J73: Your Money | O73: Your Money | T73: Your Money | Y73: Your Money | AD73: Your Money | AI73: Your Money | AN73: Your Money | AU73: Broker Center | BC73: Broker Center
B74: Investor Pro | E74: Investor Pro | J74: My Money | O74: My Money | T74: My Money | Y74: My Money | AD74: My Money | AI74: My Money | AN74: My Money | AU74: Investor Pro | BC74: Investor Pro
B75: Personal Finance | E75: Personal Finance | AU75: Personal Finance | BC75: Personal Finance
J76: Real Estate | O76: Real Estate | T76: Real Estate | Y76: Real Estate | AD76: Real Estate | AI76: Real Estate | AN76: Real Estate
B77: Saving & Budgeting | E77: Saving & Budgeting | AU77: Saving & Budgeting | BC77: Saving & Budgeting
B78: Credit & Debt | E78: Credit & Debt | J78: Careers | O78: Careers | T78: Careers | Y78: Careers | AD78: Careers | AI78: Careers | AN78: Careers | AU78: Credit & Debt | BC78: Credit & Debt
B79: Loans | E79: Loans | AU79: Loans | BC79: Loans
B80: Retirement | E80: Retirement | J80: Autos | O80: Autos | T80: Autos | Y80: Autos | AD80: Autos | AI80: Autos | AN80: Autos | AU80: Retirement | BC80: Retirement
B81: Insurance | E81: Insurance | AU81: Insurance | BC81: Insurance
B82: Taxes | E82: Taxes | J82: Target Corp (NYSE : TGT) | O82: Target Corp (NYSE : TGT) | T82: Target Corp (NYSE : TGT) | Y82: Target Corp (NYSE : TGT) | AD82: Target Corp (NYSE : TGT) | AI82: Target Corp (NYSE : TGT) | AN82: Target Corp (NYSE : TGT) | AU82: Taxes | BC82: Taxes
B83: your money | E83: your money | J83: Trade now | O83: Trade now | T83: Trade now | Y83: Trade now | AD83: Trade now | AI83: Trade now | AN83: Trade now | AU83: your money | BC83: your money
B84: My Money | E84: My Money | J84: Add to Watchlist | O84: Add to Watchlist | T84: Add to Watchlist | Y84: Add to Watchlist | AD84: Add to Watchlist | AI84: Add to Watchlist | AN84: Add to Watchlist | AU84: My Money | BC84: My Money
J85: Get chart | O85: Get chart | T85: Get chart | Y85: Get chart | AD85: Get chart | AI85: Get chart | AN85: Get chart
B86: Real Estate | E86: Real Estate | J86: Print report | O86: Print report | T86: Print report | Y86: Print report | AD86: Print report | AI86: Print report | AN86: Print report | AU86: Real Estate | BC86: Real Estate
J87: Find financial results for: 53.50Up+0.03+0.06%Delayed | O87: Find financial results for: 53.50Up+0.03+0.06%Delayed | T87: Find financial results for: 53.50Up+0.03+0.06%Delayed | Y87: Find financial results for: 53.50Up+0.03+0.06%Delayed | AD87: Find financial results for: 53.50Up+0.03+0.06%Delayed | AI87: Find financial results for: 53.50Up+0.03+0.06%Delayed | AN87: Find financial results for: 53.50Up+0.03+0.06%Delayed
B88: Careers | E88: Careers | J88: GROWTH | O88: GROWTH | T88: GROWTH | Y88: GROWTH | AD88: GROWTH | AI88: GROWTH | AN88: GROWTH | AU88: Careers | BC88: Careers
B90: Autos | E90: Autos | J90: PRICE RATIOS | O90: PRICE RATIOS | T90: PRICE RATIOS | Y90: PRICE RATIOS | AD90: PRICE RATIOS | AI90: PRICE RATIOS | AN90: PRICE RATIOS | AU90: Autos | BC90: Autos
J91: PROFIT MGN | T91: PROFIT MGN | Y91: PROFIT MGN | AD91: PROFIT MGN | AI91: PROFIT MGN | AN91: PROFIT MGN
B92: Target Corp (NYSE: TGT) | E92: Target Corp (NYSE: TGT) | J92: FINANCIAL CONDITION | O92: PROFIT MGN | Y92: FINANCIAL CONDITION | AD92: FINANCIAL CONDITION | AI92: FINANCIAL CONDITION | AN92: FINANCIAL CONDITION | AU92: Target Corp (NYSE: TGT) | BC92: Target Corp (NYSE: TGT)
B93: Trade now | E93: Trade now | J93: INV RETURNS | O93: FINANCIAL CONDITION | T93: FINANCIAL CONDITION | AD93: INV RETURNS | AI93: INV RETURNS | AN93: INV RETURNS | AU93: Trade now | BC93: Trade now
B94: Add to Watchlist | E94: Add to Watchlist | J94: MGMT EFFICIENCY | O94: INV RETURNS | T94: INV RETURNS | Y94: INV RETURNS | AI94: MGMT EFFICIENCY | AN94: MGMT EFFICIENCY | AU94: Add to Watchlist | BC94: Add to Watchlist
B95: Get Chart | E95: Get Chart | J95: 10-YR SUMMARY | O95: MGMT EFFICIENCY | T95: MGMT EFFICIENCY | Y95: MGMT EFFICIENCY | AD95: MGMT EFFICIENCY | AN95: 10-YR SUMMARY | AU95: Get Chart | BC95: Get Chart
B96: Print report | E96: Print report | O96: 10-YR SUMMARY | T96: 10-YR SUMMARY | Y96: 10-YR SUMMARY | AD96: 10-YR SUMMARY | AI96: 10-YR SUMMARY | AU96: Print report | BC96: Print report
B97: 53.50Up+0.03 +0.06% | E97: 53.50Up+0.03 +0.06% Find financial results for: | J97: MORE ABOUT TGT | AN97: MORE ABOUT TGT | AU97: 53.50Up+0.03 +0.06% Name or symbol(s): | BC97: 53.50Up+0.03 +0.06% Find earnings estimate for:
B98: MORE ON TGT | E98: MORE ON TGT | J98: SUMMARY | O98: MORE ABOUT TGT | T98: MORE ABOUT TGT | Y98: MORE ABOUT TGT | AD98: MORE ABOUT TGT | AI98: MORE ABOUT TGT | AN98: SUMMARY | AU98: MORE ON TGT | BC98: MORE ON TGT
B99: SUMMARY | E99: SUMMARY | J99: Quote | O99: SUMMARY | T99: SUMMARY | Y99: SUMMARY | AD99: SUMMARY | AI99: SUMMARY | AN99: Quote | AU99: SUMMARY | BC99: SUMMARY
B100: Quote | E100: Quote | J100: Options | O100: Quote | T100: Quote | Y100: Quote | AD100: Quote | AI100: Quote | AN100: Options | AU100: Quote | BC100: Quote
B101: Options | E101: Options | J101: Historical Prices | O101: Options | T101: Options | Y101: Options | AD101: Options | AI101: Options | AN101: Historical Prices | AU101: Options | BC101: Options
B102: Historical Prices | E102: Historical Prices | J102: CHARTS | O102: Historical Prices | T102: Historical Prices | Y102: Historical Prices | AD102: Historical Prices | AI102: Historical Prices | AN102: CHARTS | AU102: Historical Prices | BC102: Historical Prices
B103: CHARTS | E103: CHARTS | J103: Basic | O103: CHARTS | T103: CHARTS | Y103: CHARTS | AD103: CHARTS | AI103: CHARTS | AN103: Basic | AU103: CHARTS | BC103: CHARTS
B104: Interactive Chart | E104: Interactive Chart | J104: NEWS | O104: Basic | T104: Basic | Y104: Basic | AD104: Basic | AI104: Basic | AN104: NEWS | AU104: Interactive Chart | BC104: Interactive Chart
B105: NEWS | E105: NEWS | J105: Headlines | O105: NEWS | T105: NEWS | Y105: NEWS | AD105: NEWS | AI105: NEWS | AN105: Headlines | AU105: NEWS | BC105: NEWS
B106: Headlines | E106: Headlines | J106: Key Developments | O106: Headlines | T106: Headlines | Y106: Headlines | AD106: Headlines | AI106: Headlines | AN106: Key Developments | AU106: Headlines | BC106: Headlines
B107: Key Developments | E107: Key Developments | J107: FUNDAMENTALS | O107: Key Developments | T107: Key Developments | Y107: Key Developments | AD107: Key Developments | AI107: Key Developments | AN107: FUNDAMENTALS | AU107: Key Developments | BC107: Key Developments
B108: FUNDAMENTALS | E108: FUNDAMENTALS | J108: Financial Highlights | O108: FUNDAMENTALS | T108: FUNDAMENTALS | Y108: FUNDAMENTALS | AD108: FUNDAMENTALS | AI108: FUNDAMENTALS | AN108: Financial Highlights | AU108: FUNDAMENTALS | BC108: FUNDAMENTALS
B109: Financial Highlights | E109: Financial Highlights | J109: Profile | O109: Financial Highlights | T109: Financial Highlights | Y109: Financial Highlights | AD109: Financial Highlights | AI109: Financial Highlights | AN109: Profile | AU109: Financial Highlights | BC109: Financial Highlights
B110: Profile | E110: Profile | J110: Key Ratios | O110: Profile | T110: Profile | Y110: Profile | AD110: Profile | AI110: Profile | AN110: Key Ratios | AU110: Profile | BC110: Profile
B111: Key Ratios | E111: Key Ratios | J111: 10-Year Summary | O111: Key Ratios | T111: Key Ratios | Y111: Key Ratios | AD111: Key Ratios | AI111: Key Ratios | AN111: 10-Year Summary | AU111: Key Ratios | BC111: Key Ratios
B112: 10-Year Summary | E112: 10-Year Summary | J112: Earnings | O112: 10-Year Summary | T112: 10-Year Summary | Y112: 10-Year Summary | AD112: 10-Year Summary | AI112: 10-Year Summary | AN112: Earnings | AU112: 10-Year Summary | BC112: 10-Year Summary
B113: Earnings | E113: Earnings | J113: SEC Filings | O113: Earnings | T113: Earnings | Y113: Earnings | AD113: Earnings | AI113: Earnings | AN113: SEC Filings | AU113: Earnings | BC113: Earnings
B114: SEC Filings | E114: SEC Filings | J114: RATINGS/ANALYSIS | O114: SEC Filings | T114: SEC Filings | Y114: SEC Filings | AD114: SEC Filings | AI114: SEC Filings | AN114: RATINGS/ANALYSIS | AU114: SEC Filings | BC114: SEC Filings
B115: RATINGS/ANALYSIS | E115: RATINGS/ANALYSIS | J115: StockScouter Report | O115: RATINGS/ANALYSIS | T115: RATINGS/ANALYSIS | Y115: RATINGS/ANALYSIS | AD115: RATINGS/ANALYSIS | AI115: RATINGS/ANALYSIS | AN115: StockScouter Report | AU115: RATINGS/ANALYSIS | BC115: RATINGS/ANALYSIS
B116: StockScouter Report | E116: StockScouter Report | J116: Analyst Ratings | O116: StockScouter Report | T116: StockScouter Report | Y116: StockScouter Report | AD116: StockScouter Report | AI116: StockScouter Report | AN116: Analyst Ratings | AU116: StockScouter Report | BC116: StockScouter Report
B117: Analyst Ratings | E117: Analyst Ratings | J117: INSIDER ACTION | O117: Analyst Ratings | T117: Analyst Ratings | Y117: Analyst Ratings | AD117: Analyst Ratings | AI117: Analyst Ratings | AN117: INSIDER ACTION | AU117: Analyst Ratings | BC117: Analyst Ratings
B118: INSIDER ACTION | E118: INSIDER ACTION | J118: Insider Trades | O118: INSIDER ACTION | T118: INSIDER ACTION | Y118: INSIDER ACTION | AD118: INSIDER ACTION | AI118: INSIDER ACTION | AN118: Insider Trades | AU118: INSIDER ACTION | BC118: INSIDER ACTION
B119: Insider Trades | E119: Insider Trades | J119: Ownership | O119: Insider Trades | T119: Insider Trades | Y119: Insider Trades | AD119: Insider Trades | AI119: Insider Trades | AN119: Ownership | AU119: Insider Trades | BC119: Insider Trades
B120: Ownership | E120: Ownership | J120: FINANCIALS | O120: Ownership | T120: Ownership | Y120: Ownership | AD120: Ownership | AI120: Ownership | AN120: FINANCIALS | AU120: Ownership | BC120: Ownership
B121: FINANCIALS | E121: FINANCIALS | J121: Income Statement | O121: FINANCIALS | T121: FINANCIALS | Y121: FINANCIALS | AD121: FINANCIALS | AI121: FINANCIALS | AN121: Income Statement | AU121: FINANCIALS | BC121: FINANCIALS
B122: Income Statement | E122: Income Statement | J122: Balance Sheet | O122: Income Statement | T122: Income Statement | Y122: Income Statement | AD122: Income Statement | AI122: Income Statement | AN122: Balance Sheet | AU122: Income Statement | BC122: Income Statement
B123: Balance Sheet | E123: Balance Sheet | J123: Cash Flow | O123: Balance Sheet | T123: Balance Sheet | Y123: Balance Sheet | AD123: Balance Sheet | AI123: Balance Sheet | AN123: Cash Flow | AU123: Balance Sheet | BC123: Balance Sheet
B124: Cash Flow | E124: Cash Flow | J124: 10-Year Summary | O124: Cash Flow | T124: Cash Flow | Y124: Cash Flow | AD124: Cash Flow | AI124: Cash Flow | AN124: 10-Year Summary | AU124: Cash Flow | BC124: Cash Flow
B125: 10-Year Summary | E125: 10-Year Summary | O125: 10-Year Summary | T125: 10-Year Summary | Y125: 10-Year Summary | AD125: 10-Year Summary | AI125: 10-Year Summary | AU125: 10-Year Summary | BC125: 10-Year Summary
B127: COMPANY ADDRESS | E127: FINANCIAL HIGHLIGHTS | J127: Industry: Discount, Variety Stores | AN127: Industry: Discount, Variety Stores | AU127: INCOME STATEMENT: 10-YEAR SUMMARY | BC127: EARNINGS ESTIMATES
B128: Target Corp | E128: Name | F128: Value | G128: 1 MONTH AGO | H128: 2 MONTHS AGO | I128: 3 MONTHS AGO | O128: Industry: Discount, Variety Stores | T128: Industry: Discount, Variety Stores | Y128: Industry: Discount, Variety Stores | AD128: Industry: Discount, Variety Stores | AI128: Industry: Discount, Variety Stores | AU128: DATE | AV128: SALES | AW128: EBIT | AX128: DEPRECIATION | AY128: TOTAL NET | AZ128: EPS | BA128: TAX RATE | BC128: DESCRIPTION | BD128: QTR(1/12) | BE128: QTR(4/12) | BF128: FY(1/12) | BG128: FY(1/13)
B129: 1000 Nicollet Mall | E129: Sales | F129: 69.24 Bil | J129: Growth Rates % | K129: Company | L129: Industry | M129: S&P 500 | AO129: Avg P/E | AP129: Price/ Sales | AQ129: Price/ Book | AR129: Net Profit Margin (%) | AY129: INCOME | BA129: (%) | BC129: Average Estimate | BD129: 1.48 | BE129: 0.97 | BF129: 4.31 | BG129: 4.33
B130: MINNEAPOLIS, MN 55403 | E130: Income | F130: 2.98 Bil | J130: Sales (Qtr vs year ago qtr) | K130: 5.1 | L130: 9.2 | M130: 14.4 | O130: Price Ratios | P130: Company | Q130: Industry | R130: S&P 500 | T130: Profit Margins % | U130: Company | V130: Industry | W130: S&P 500 | Y130: Financial Condition | Z130: Company | AA130: Industry | AB130: S&P 500 | AD130: Investment Returns % | AE130: Company | AF130: Industry | AG130: S&P 500 | AI130: Management Efficiency | AJ130: Company | AK130: Industry | AL130: S&P 500 | AN130: 2011-01-11 | AO130: 13.5 | AP130: 0.59 | AQ130: 2.47 | AR130: 4.3 | AU130: 2011-02-08 | AV130: 63.37 Bil | AW130: 4.63 Bil | AX130: 1.66 Bil | AY130: 2.85 Bil | AZ130: 3.35 | BA130: 38.4 | BC130: Number of Analysts | BD130: 18 | BE130: 7 | BF130: 22 | BG130: 20
B131: US - Map | E131: Net Profit Margin | F131: 0.0431 | J131: Net Income (YTD vs YTD) | K131: NA | L131: NA | M131: NA | O131: Current P/E Ratio | P131: 12.5 | Q131: 15.4 | R131: 26.5 | T131: Gross Margin | U131: 31 | V131: 25.3 | W131: 39.9 | Y131: Debt/Equity Ratio | Z131: 1.24 | AA131: 0.78 | AB131: 1.05 | AD131: Return On Equity | AE131: 19.8 | AF131: 21.8 | AG131: 26.4 | AI131: Income/Employee | AJ131: 8403 | AK131: 9953 | AL131: 130747 | AN131: 2011-01-10 | AO131: 12.9 | AP131: 0.59 | AQ131: 2.49 | AR131: 3.8 | AU131: 2011-02-07 | AV131: 59.49 Bil | AW131: 4.50 Bil | AX131: 1.50 Bil | AY131: 2.79 Bil | AZ131: 3.21 | BA131: 38 | BC131: High Estimate | BD131: 1.57 | BE131: 1.11 | BF131: 4.46 | BG131: 4.59
B132: Phone: 612-3046073 | E132: Return on Equity | F132: 0.1979 | J132: Net Income (Qtr vs year ago qtr) | K132: 3.7 | L132: 1.5 | M132: 45.6 | O132: P/E Ratio 5-Year High | P132: NA | Q132: 4.3 | R132: 14.1 | T132: Pre-Tax Margin | U132: 6.7 | V132: 5.6 | W132: 18.1 | Y132: Current Ratio | Z132: 1.3 | AA132: 1.1 | AB132: 1.4 | AD132: Return On Assets | AE132: 6.4 | AF132: 8.4 | AG132: 9 | AI132: Revenue/Employee | AJ132: 195037 | AK132: 309063 | AL132: 1 Mil | AN132: 2011-01-09 | AO132: 16.1 | AP132: 0.37 | AQ132: 1.71 | AR132: 3.4 | AU132: 2011-02-03 | AV132: 37.41 Bil | AW132: 2.23 Bil | AX132: 967.00 Mil | AY132: 1.38 Bil | AZ132: 1.5 | BA132: 38.2 | BC132: Low Estimate | BD132: 1.41 | BE132: 0.85 | BF132: 4.18 | BG132: 4
B133: Fax: 612-7615555 | E133: Debt/Equity Ratio | F133: 1.24 | J133: Sales (5-Year Annual Avg.) | K133: 5.07 | L133: 6.59 | M133: 8.26 | O133: P/E Ratio 5-Year Low | P133: NA | Q133: 1.7 | R133: 2.3 | T133: Net Profit Margin | U133: 4.3 | V133: 3.7 | W133: 13.2 | Y133: Quick Ratio | Z133: 0.6 | AA133: 0.3 | AB133: 1 | AD133: Return On Capital | AE133: 8.8 | AF133: 13 | AG133: 11.9 | AI133: Receivable Turnover | AJ133: 11.9 | AK133: 134.3 | AL133: 15.9 | AN133: 2011-02-08 | AO133: 18 | AP133: 0.77 | AQ133: 3.05 | AR133: 4.5 | AU133: 2011-02-02 | AV133: 39.83 Bil | AW133: 2.21 Bil | AX133: 1.08 Bil | AY133: 1.37 Bil | AZ133: 1.5 | BA133: 38 | BC133: Year Ago EPS | BD133: 1.45 | BE133: 0.99 | BF133: 4 | BG133: 4.31
B134: Website | E134: Name | F134: Value | G134: 1 MONTH AGO | H134: 2 MONTHS AGO | I134: 3 MONTHS AGO | J134: Net Income (5-Year Annual Avg.) | K134: 3.93 | L134: 7.4 | M134: 8.51 | O134: Price/Sales Ratio | P134: 0.52 | Q134: 0.53 | R134: 2.06 | T134: 5Yr Gross Margin (5-Year Avg.) | U134: 30.5 | V134: 24.9 | W134: 39.8 | Y134: Interest Coverage | Z134: 7.1 | AA134: 23.3 | AB134: 319.4 | AD134: Return On Equity (5-Year Avg.) | AE134: 17.7 | AF134: 19 | AG134: 23.9 | AI134: Inventory Turnover | AJ134: 4.9 | AK134: 7.6 | AL134: 12.5 | AN134: 2011-02-07 | AO134: 16.7 | AP134: 0.91 | AQ134: 3.41 | AR134: 4.7 | AU134: 2011-01-11 | AV134: 67.39 Bil | AW134: 4.50 Bil | AX134: 2.08 Bil | AY134: 2.92 Bil | AZ134: 4 | BA134: 35 | BC134: Growth Rate | BD134: 0.0222 | BE134: -0.0231 | BF134: 0.077 | BG134: 0.0048
B135: COMPANY INFORMATION | E135: Revenue/Share | F135: 99.8 | J135: Dividends (5-Year Annual Avg.) | K135: 19.34 | L135: 13.74 | M135: 5.94 | O135: Price/Book Value | P135: 2.35 | Q135: 3.12 | R135: 3.94 | T135: 5Yr PreTax Margin (5-Year Avg.) | U135: 6.6 | V135: 5.2 | W135: 16.2 | Y135: Leverage Ratio | Z135: 3.2 | AA135: 2.8 | AB135: 3.6 | AD135: Return On Assets (5-Year Avg.) | AE135: 6.3 | AF135: 8 | AG135: 8.1 | AI135: Asset Turnover | AJ135: 1.5 | AK135: 2.3 | AL135: 0.8 | AN135: 2011-01-06 | AO135: 19.7 | AP135: 0.92 | AQ135: 3.33 | AR135: 4.6 | AU135: 2011-01-10 | AV135: 65.36 Bil | AW135: 3.87 Bil | AX135: 2.02 Bil | AY135: 2.49 Bil | AZ135: 3.3 | BA135: 35.7 | BC135: EARNINGS SURPRISE
B136: Exchange: | C136: NYSE | E136: Earnings/Share | F136: 4.28 | O136: Price/Cash Flow Ratio | P136: 7.1 | Q136: 9.7 | R136: 11.4 | T136: 5Yr Net Profit Margin (5-Year Avg.) | U136: 4.1 | V136: 3.4 | W136: 11.6 | Y136: Book Value/Share | Z136: 22.73 | AA136: 19.96 | AB136: 26.53 | AD136: Return On Capital (5-Year Avg.) | AE136: 8.5 | AF136: 12.3 | AG136: 11 | AN136: 2011-01-05 | AO136: 22.2 | AP136: 0.96 | AQ136: 3.38 | AR136: 4 | AU136: 2011-01-09 | AV136: 64.95 Bil | AW136: 3.54 Bil | AX136: 1.83 Bil | AY136: 2.21 Bil | AZ136: 2.86 | BA136: 37.4 | BC136: DESCRIPTION | BD136: (10/10) | BE136: (1/11) | BF136: (4/11) | BG136: (7/11) | BH136: (10/11)
B137: Stock: | C137: Target Corporation | E137: Book Value/Share | F137: 22.73 | J137: Financial data in U.S. dollars | AI137: Financial data in U.S. dollars | AN137: 2011-01-04 | AO137: 20.5 | AP137: 0.83 | AQ137: 3.11 | AR137: 3.9 | AU137: 2011-01-06 | AV137: 52.62 Bil | AW137: 3.86 Bil | AX137: 1.41 Bil | AY137: 2.41 Bil | AZ137: 2.71 | BA137: 37.6 | BC137: Estimate | BD137: 0.68 | BE137: 1.4 | BF137: 0.94 | BG137: 0.97 | BH137: 0.74
B138: Industry: | C138: Discount, Variety Stores | E138: Dividend Rate | F138: 1.2 | O138: Financial data in U.S. dollars | T138: Financial data in U.S. dollars | Y138: Financial data in U.S. dollars | AD138: Financial data in U.S. dollars | AN138: 2011-02-03 | AO138: 24.1 | AP138: 0.69 | AQ138: 2.72 | AR138: 3.7 | AU138: 2011-01-05 | AV138: 46.84 Bil | AW138: 3.03 Bil | AX138: 1.26 Bil | AY138: 1.89 Bil | AZ138: 2.07 | BA138: 37.8 | BC138: Actual | BD138: 0.74 | BE138: 1.45 | BF138: 0.99 | BG138: 1.03 | BH138: 0.82
B139: Employees: | C139: 355000 | E139: Dividend Yield | F139: 2.24 | J139: Ad Choice | AI139: Ad Choice | AN139: 2011-02-02 | AO139: 24.2 | AP139: 0.99 | AQ139: 4.99 | AR139: 3.4 | AU139: 2011-01-04 | AV139: 42.03 Bil | AW139: 2.60 Bil | AX139: 1.10 Bil | AY139: 1.62 Bil | AZ139: 1.76 | BA139: 37.8 | BC139: Difference | BD139: 0.06 | BE139: 0.05 | BF139: 0.05 | BG139: 0.06 | BH139: 0.08
B140: DESCRIPTION | E140: Payout Ratio | F140: 0.25 | O140: Ad Choice | T140: Ad Choice | Y140: Ad Choice | AD140: Ad Choice | AO140: Book Value/ Share | AP140: Debt/ Equity | AQ140: Return on Equity (%) | AR140: Return on Assets (%) | AS140: Interest Coverage | AU140: BALANCE SHEET: 10 YEAR SUMMARY | BC140: % Change | BD140: 0.0882 | BE140: 0.0357 | BF140: 0.0532 | BG140: 0.0619 | BH140: 0.1081
B141: Target Corporation (Target) operates Target general merchandise stores with an assortment of general merchandise and food assortment. Its expanded food assortment includes some perishables and some additional dry, dairy and frozen items. In addition, it operates SuperTarget stores with general merchandise items and a full line of food items. Target.com offers an assortment of general merchandise, including many items found in its stores and a complementary assortment, such as extended sizes and colors, sold only online. It operates two segments: Retail and Credit Card. The Retail segment includes all of its merchandising operations, including its integrated online business. The Credit Card segment offers credit to qualified guests through its branded credit cards, the Target Visa and the Target Card. In addition, it offers a branded Target Debit Card (collectively REDcards). As of January 29, 2011, it had 1,750 stores in 49 states and the District of Columbia. | E141: FUNDAMENTAL DATA | J141: Feedback | AI141: Feedback | AN141: 2011-01-11 | AO141: 22 | AP141: 1.02 | AQ141: 18.9 | AR141: 6.7 | AS141: 5.9 | AU141: DATE | AV141: CURRENT | AW141: CURRENT | AX141: LONG TERM | AY141: SHARES | BC141: CONSENSUS EPS TREND
B142: DATA PROVIDERS | E142: Gross Margin | F142: 0.3099 | O142: Feedback | T142: Feedback | Y142: Feedback | AD142: Feedback | AN142: 2011-01-10 | AO142: 20.61 | AP142: 1.1 | AQ142: 16.2 | AR142: 5.6 | AS142: 4.8 | AV142: ASSETS | AW142: LIABILITIES | AX142: DEBT | AY142: OUTSTANDING | BC142: DESCRIPTION | BD142: QTR(1/12) | BE142: QTR(4/12) | BF142: FY(1/12) | BG142: FY(1/13)
E143: Shares Outstanding | F143: 671.60 Mil | J143: DATA PROVIDERS | AI143: DATA PROVIDERS | AN143: 2011-01-09 | AO143: 18.22 | AP143: 1.37 | AQ143: 16.1 | AR143: 5 | AS143: 4 | AU143: 2011-02-08 | AV143: 44.56 Bil | AW143: 29.25 Bil | AX143: 15.13 Bil | AY143: 818.74 Mil | BC143: Current Estimate | BD143: 1.48 | BE143: 0.97 | BF143: 4.31 | BG143: 4.33
B144: Copyright © 2011 Microsoft. All rights reserved. | E144: Market Cap | F144: 35.91 Bil | O144: DATA PROVIDERS | T144: DATA PROVIDERS | Y144: DATA PROVIDERS | AD144: DATA PROVIDERS | AN144: 2011-02-08 | AO144: 18.7 | AP144: 1.12 | AQ144: 18.6 | AR144: 6.4 | AS144: 6.9 | AU144: 2011-02-07 | AV144: 37.35 Bil | AW144: 21.72 Bil | AX144: 8.68 Bil | AY144: 859.77 Mil | BC144: 7 Days Ago | BD144: 1.48 | BE144: 0.97 | BF144: 4.31 | BG144: 4.34
E145: Institutional Ownership | F145: 0.834 | J145: Copyright © 2011 Microsoft. All rights reserved. | AI145: Copyright © 2011 Microsoft. All rights reserved. | AN145: 2011-02-07 | AO145: 18.18 | AP145: 0.64 | AQ145: 17.8 | AR145: 7.5 | AS145: 7.5 | AU145: 2011-02-03 | AV145: 28.60 Bil | AW145: 19.16 Bil | AX145: 10.19 Bil | AY145: 909.80 Mil | BC145: 30 Days Ago | BD145: 1.47 | BE145: 0.95 | BF145: 4.22 | BG145: 4.32
B146: Quotes are real-time for NASDAQ, NYSE and AMEX. See delay times for other exchanges. | E146: More | O146: Copyright © 2011 Microsoft. All rights reserved. | T146: Copyright © 2011 Microsoft. All rights reserved. | Y146: Copyright © 2011 Microsoft. All rights reserved. | AD146: Copyright © 2011 Microsoft. All rights reserved. | AN146: 2011-01-06 | AO146: 16.25 | AP146: 0.69 | AQ146: 17 | AR146: 6.9 | AS146: 7.9 | AU146: 2011-02-02 | AV146: 24.15 Bil | AW146: 16.29 Bil | AX146: 8.09 Bil | AY146: 905.16 Mil | BC146: 60 Days Ago | BD146: 1.47 | BE146: 0.94 | BF146: 4.22 | BG146: 4.32
E147: REVENUE - QUARTERLY RESULTS (IN MILLIONS) | J147: Quotes are real-time for NASDAQ, NYSE and AMEX. See delay times for other exchanges. | AI147: Quotes are real-time for NASDAQ, NYSE and AMEX. See delay times for other exchanges. | AN147: 2011-01-05 | AO147: 14.63 | AP147: 0.73 | AQ147: 14.5 | AR147: 5.8 | AS147: 5.1 | AU147: 2011-01-11 | AV147: 43.71 Bil | AW147: 28.22 Bil | AX147: 15.61 Bil | AY147: 704.04 Mil | BC147: 90 Days Ago | BD147: 1.47 | BE147: 0.91 | BF147: 4.21 | BG147: 4.33
B148: Fundamental company data and historical chart data provided by Thomson Reuters (click for restrictions). Real-time quotes provided by BATS Exchange. Real-time index quotes and delayed quotes supplied by Interactive Data Real-Time Services. Fund summary, fund performance and dividend data provided by Morningstar Inc. Analyst recommendations data provided by Zacks Investment Research. StockScouter data provided by Verus Analytics. IPO data provided by Hoover's Inc. Index membership data provided by SIX Telekurs. | F148: FY (01/11) | G148: FY (01/10) | H148: FY (01/09) | O148: Quotes are real-time for NASDAQ, NYSE and AMEX. See delay times for other exchanges. | T148: Quotes are real-time for NASDAQ, NYSE and AMEX. See delay times for other exchanges. | Y148: Quotes are real-time for NASDAQ, NYSE and AMEX. See delay times for other exchanges. | AD148: Quotes are real-time for NASDAQ, NYSE and AMEX. See delay times for other exchanges. | AN148: 2011-01-04 | AO148: 12.21 | AP148: 0.99 | AQ148: 14.5 | AR148: 5.2 | AS148: 4.7 | AU148: 2011-01-10 | AV148: 44.53 Bil | AW148: 29.19 Bil | AX148: 15.12 Bil | AY148: 744.64 Mil | BC148: EARNINGS GROWTH RATES - NEXT 5 YEARS
E149: 1st Qtr | F149: 15593 | G149: 14833 | H149: 14802 | J149: Fundamental company data and historical chart data provided by Thomson Reuters (click for restrictions). Real-time quotes provided by BATS Exchange. Real-time index quotes and delayed quotes supplied by Interactive Data Real-Time Services. Fund summary, fund performance and dividend data provided by Morningstar Inc. Analyst recommendations provided by Zacks Investment Research. StockScouter data provided by Verus Analytics. IPO data provided by Hoover's Inc. Index membership data provided by SIX Telekurs. | AI149: Fundamental company data and historical chart data provided by Thomson Reuters (click for restrictions). Real-time quotes provided by BATS Exchange. Real-time index quotes and delayed quotes supplied by Interactive Data Real-Time Services. Fund summary, fund performance and dividend data provided by Morningstar Inc. Analyst recommendations provided by Zacks Investment Research. StockScouter data provided by Verus Analytics. IPO data provided by Hoover's Inc. Index membership data provided by SIX Telekurs. | AN149: 2011-02-03 | AO149: 10.38 | AP149: 1.18 | AQ149: 14.6 | AR149: 4.8 | AS149: 3.8 | AU149: 2011-01-09 | AV149: 44.11 Bil | AW149: 30.39 Bil | AX149: 17.49 Bil | AY149: 752.71 Mil | BC149: DESCRIPTION | BD149: LAST 5 YRS | BE149: FY 2012 | BF149: FY 2013 | BG149: NEXT 5 YRS | BH149: 11 P/E
B150: Japanese stock price data provided by Nomura Research Institute Ltd.; quotes delayed 20 minutes. Canadian fund data provided by CANNEX Financial Exchanges Ltd. | E150: 2nd Qtr | F150: 15532 | G150: 15067 | H150: 15472 | O150: Fundamental company data and historical chart data provided by Thomson Reuters (click for restrictions). Real-time quotes provided by BATS Exchange. Real-time index quotes and delayed quotes supplied by Interactive Data Real-Time Services. Fund summary, fund performance and dividend data provided by Morningstar Inc. Analyst recommendations provided by Zacks Investment Research. StockScouter data provided by Verus Analytics. IPO data provided by Hoover's Inc. Index membership data provided by SIX Telekurs. | T150: Fundamental company data and historical chart data provided by Thomson Reuters (click for restrictions). Real-time quotes provided by BATS Exchange. Real-time index quotes and delayed quotes supplied by Interactive Data Real-Time Services. Fund summary, fund performance and dividend data provided by Morningstar Inc. Analyst recommendations provided by Zacks Investment Research. StockScouter data provided by Verus Analytics. IPO data provided by Hoover's Inc. Index membership data provided by SIX Telekurs. | Y150: Fundamental company data and historical chart data provided by Thomson Reuters (click for restrictions). Real-time quotes provided by BATS Exchange. Real-time index quotes and delayed quotes supplied by Interactive Data Real-Time Services. Fund summary, fund performance and dividend data provided by Morningstar Inc. Analyst recommendations provided by Zacks Investment Research. StockScouter data provided by Verus Analytics. IPO data provided by Hoover's Inc. Index membership data provided by SIX Telekurs. | AD150: Fundamental company data and historical chart data provided by Thomson Reuters (click for restrictions). Real-time quotes provided by BATS Exchange. Real-time index quotes and delayed quotes supplied by Interactive Data Real-Time Services. Fund summary, fund performance and dividend data provided by Morningstar Inc. Analyst recommendations provided by Zacks Investment Research. StockScouter data provided by Verus Analytics. IPO data provided by Hoover's Inc. Index membership data provided by SIX Telekurs. | AN150: 2011-02-02 | AO150: 8.68 | AP150: 1.14 | AQ150: 17.4 | AR150: 5.7 | AS150: 4.7 | AU150: 2011-01-06 | AV150: 35.00 Bil | AW150: 20.79 Bil | AX150: 9.12 Bil | AY150: 874.07 Mil | BC150: Company | BD150: 0.083 | BE150: 0.077 | BF150: 0.005 | BG150: 0.118 | BH150: 12.4
E151: 3rd Qtr | F151: 15605 | G151: 15276 | H151: 15114 | J151: Japanese stock price data provided by Nomura Research Institute Ltd.; quotes delayed 20 minutes. Canadian fund data provided by CANNEX Financial Exchanges Ltd. | AI151: Japanese stock price data provided by Nomura Research Institute Ltd.; quotes delayed 20 minutes. Canadian fund data provided by CANNEX Financial Exchanges Ltd. | AU151: 2011-01-05 | AV151: 32.29 Bil | AW151: 19.26 Bil | AX151: 9.03 Bil | AY151: 890.64 Mil | BC151: Industry | BD151: 0.224 | BE151: 0.137 | BF151: 0.16 | BG151: 0.142 | BH151: 18
B152: Financial data in US dollars | Page generated 6:39 PM ET | E152: 4th Qtr | F152: 20661 | G152: 20181 | H152: 19560 | O152: Japanese stock price data provided by Nomura Research Institute Ltd.; quotes delayed 20 minutes. Canadian fund data provided by CANNEX Financial Exchanges Ltd. | T152: Japanese stock price data provided by Nomura Research Institute Ltd.; quotes delayed 20 minutes. Canadian fund data provided by CANNEX Financial Exchanges Ltd. | Y152: Japanese stock price data provided by Nomura Research Institute Ltd.; quotes delayed 20 minutes. Canadian fund data provided by CANNEX Financial Exchanges Ltd. | AD152: Japanese stock price data provided by Nomura Research Institute Ltd.; quotes delayed 20 minutes. Canadian fund data provided by CANNEX Financial Exchanges Ltd. | AN152: Financial data in U.S. dollars | AU152: 2011-01-04 | AV152: 31.42 Bil | AW152: 20.28 Bil | AX152: 10.16 Bil | AY152: 911.81 Mil | BC152: S&P 500 | BD152: NA | BE152: NA | BF152: 0.06 | BG152: NA | BH152: 13
B153: Ad ChoiceFeedback | E153: Total | F153: 67391 | G153: 65357 | H153: 64948 | J153: Privacy | AI153: Privacy | AU153: Financial Data in US Dollar | BC153: Financial Data in US Dollar
B154: RECENT QUOTES | E154: QTR. OVER QTR. EPS GROWTH RATE | J154: Legal | O154: Privacy | T154: Privacy | Y154: Privacy | AD154: Privacy | AI154: Legal | AN154: Ad Choice | AU154: Financial statements are prepared in this standard format to allow direct comparisons of all companies and industries across multiple time frames. | BC154: Listen to earnings release conference calls
B155: WATCHLIST | F155: FY (01/11) | G155: FY (01/10) | H155: FY (01/09) | J155: Advertise | O155: Legal | T155: Legal | Y155: Legal | AD155: Legal | AI155: Advertise | AU155: See 10K and 10Q SEC Filings for as reported statements | BC155: Zacks Industry:
B156: You're not signed in | E156: 1st Qtr | F156: -0.27 | G156: -0.15 | H156: -0.4 | J156: MSN Worldwide | O156: Advertise | T156: Advertise | Y156: Advertise | AD156: Advertise | AI156: MSN Worldwide | AN156: Feedback | AU156: DATA PROVIDERS | BC156: Zacks data updated daily
B157: You’re not signed in to MSN Money, so you’re seeing the Watchlist that is tied to your computer. For a more consistent Watchlist experience, sign in to MSN Money. Learn more | E157: 2nd Qtr | F157: 0.02 | G157: 0.14 | H157: 0.09 | J157: Help | O157: MSN Worldwide | T157: MSN Worldwide | Y157: MSN Worldwide | AD157: MSN Worldwide | AI157: Help | BC157: DATA PROVIDERS
B158: View full page | E158: 3rd Qtr | F158: -0.19 | G158: -0.27 | H158: -0.4 | J158: About our ads | O158: Help | T158: Help | Y158: Help | AD158: Help | AI158: About our ads | AN158: DATA PROVIDERS | AU158: Copyright © 2011 Microsoft. All rights reserved.
B159: SYMBOL | E159: 4th Qtr | F159: 0.95 | G159: 1.16 | H159: 0.65 | J159: Feedback | O159: About our ads | T159: About our ads | Y159: About our ads | AD159: About our ads | AI159: Feedback | BC159: Copyright © 2011 Microsoft. All rights reserved.
B160: LAST | E160: Financial Data in US Dollar | J160: Site map | O160: Feedback | T160: Feedback | Y160: Feedback | AD160: Feedback | AI160: Site map | AN160: Copyright © 2011 Microsoft. All rights reserved. | AU160: Quotes are real-time for NASDAQ, NYSE and AMEX. See delay times for other exchanges.
B161: CHANGE | E161: EARNINGS PER SHARE - QUARTERLY RESULTS | J161: RSS | O161: Site map | T161: Site map | Y161: Site map | AD161: Site map | AI161: RSS | BC161: Quotes are real-time for NASDAQ, NYSE and AMEX. See delay times for other exchanges.
B162: SHARES | F162: FY (01/11) | G162: FY (01/10) | H162: FY (01/09) | J162: © 2011 Microsoft | O162: RSS | T162: RSS | Y162: RSS | AD162: RSS | AI162: © 2011 Microsoft | AN162: Quotes are real-time for NASDAQ, NYSE and AMEX. See delay times for other exchanges. | AU162: Fundamental company data and historical chart data provided by Thomson Reuters (click for restrictions). Real-time quotes provided by BATS Exchange. Real-time index quotes and delayed quotes supplied by Interactive Data Real-Time Services. Fund summary, fund performance and dividend data provided by Morningstar Inc. Analyst recommendations data provided by Zacks Investment Research. StockScouter data provided by Verus Analytics. IPO data provided by Hoover's Inc. Index membership data provided by SIX Telekurs.
B163: Where's my list? | Update quotes | Clear all lists | E163: 1st Qtr | F163: 0.91 | G163: 0.69 | H163: 0.75 | O163: © 2011 Microsoft | T163: © 2011 Microsoft | Y163: © 2011 Microsoft | AD163: © 2011 Microsoft | BC163: Fundamental company data and historical chart data provided by Thomson Reuters (click for restrictions). Real-time quotes provided by BATS Exchange. Real-time index quotes and delayed quotes supplied by Interactive Data Real-Time Services. Fund summary, fund performance and dividend data provided by Morningstar Inc. Analyst recommendations data provided by Zacks Investment Research. StockScouter data provided by Verus Analytics. IPO data provided by Hoover's Inc. Index membership data provided by SIX Telekurs.
B164: Quotes delayed at least 15 min | E164: 2nd Qtr | F164: 0.93 | G164: 0.79 | H164: 0.82 | AN164: Fundamental company data and historical chart data provided by Thomson Reuters (click for restrictions). Real-time quotes provided by BATS Exchange. Real-time index quotes and delayed quotes supplied by Interactive Data Real-Time Services. Fund summary, fund performance and dividend data provided by Morningstar Inc. Analyst recommendations provided by Zacks Investment Research. StockScouter data provided by Verus Analytics. IPO data provided by Hoover's Inc. Index membership data provided by SIX Telekurs. | AU164: Japanese stock price data provided by Nomura Research Institute Ltd.; quotes delayed 20 minutes. Canadian fund data provided by CANNEX Financial Exchanges Ltd.
B165: Sponsored by: | E165: 3rd Qtr | F165: 0.75 | G165: 0.58 | H165: 0.49 | BC165: Japanese stock price data provided by Nomura Research Institute Ltd.; quotes delayed 20 minutes. Canadian fund data provided by CANNEX Financial Exchanges Ltd.
B166: MARKET UPDATE | E166: 4th Qtr | F166: 1.46 | G166: 1.25 | H166: 0.81 | AN166: Japanese stock price data provided by Nomura Research Institute Ltd.; quotes delayed 20 minutes. Canadian fund data provided by CANNEX Financial Exchanges Ltd. | AU166: Ad ChoiceFeedback
B167: [BRIEFING.COM] Stocks closed out the week on a strong note, helping the broad market book another weekly gain. Europe remained the primary topic of trade. Traders took early cues from Europe, where the region's major bourses bounced because of the fo ... More | E167: Total | F167: 4.05 | G167: 3.31 | H167: 2.87 | AU167: RECENT QUOTES | BC167: Ad ChoiceFeedback
B168: MORE MARKET NEWS | E168: YR. OVER YR. EPS GROWTH RATE | AN168: Privacy | AU168: WATCHLIST | BC168: QTR. OVER QTR. EPS GROWTH RATE
B169: Stock Ticker | F169: FY (01/11) | G169: FY (01/10) | H169: FY (01/09) | AN169: Legal | AU169: You're not signed in | BD169: FY (01/11) | BE169: FY (01/10) | BF169: FY (01/09)
B170: Story Stocks | E170: 1st Qtr | F170: 0.32 | G170: -0.08 | H170: -0.01 | AN170: Advertise | AU170: You’re not signed in to MSN Money, so you’re seeing the Watchlist that is tied to your computer. For a more consistent Watchlist experience, sign in to MSN Money. Learn more | BC170: 1st Qtr | BD170: -0.27 | BE170: -0.15 | BF170: -0.4
B171: In Play | E171: 2nd Qtr | F171: 0.18 | G171: -0.04 | H171: 0.01 | AN171: MSN Worldwide | AU171: View full page | BC171: 2nd Qtr | BD171: 0.02 | BE171: 0.14 | BF171: 0.09
B172: Short Stories | E172: 3rd Qtr | F172: 0.29 | G172: 0.18 | H172: -0.14 | AN172: Help | AU172: SYMBOL | BC172: 3rd Qtr | BD172: -0.19 | BE172: -0.27 | BF172: -0.4
B173: Sponsored by: | E173: 4th Qtr | F173: 0.17 | G173: 0.54 | H173: -0.35 | AN173: About our ads | AU173: LAST | BC173: 4th Qtr | BD173: 0.95 | BE173: 1.16 | BF173: 0.65
B174: Privacy | E174: DATA PROVIDERS | AN174: Feedback | AU174: CHANGE | BC174: YR. OVER YR. EPS GROWTH RATE
B175: Legal | AN175: Site map | AU175: SHARES | BD175: FY (01/11) | BE175: FY (01/10) | BF175: FY (01/09)
B176: Advertise | E176: Copyright © 2011 Microsoft. All rights reserved. | AN176: RSS | AU176: Where's my list? | Update quotes | Clear all lists | BC176: 1st Qtr | BD176: 0.32 | BE176: -0.08 | BF176: -0.01
B177: MSN Worldwide | AN177: © 2011 Microsoft | AU177: Quotes delayed at least 15 min | BC177: 2nd Qtr | BD177: 0.18 | BE177: -0.04 | BF177: 0.01
B178: Help | E178: Quotes are real-time for NASDAQ, NYSE and AMEX. See delay times for other exchanges. | AU178: Sponsored by: | BC178: 3rd Qtr | BD178: 0.29 | BE178: 0.18 | BF178: -0.14
B179: About our ads | AU179: MARKET UPDATE | BC179: 4th Qtr | BD179: 0.17 | BE179: 0.54 | BF179: -0.35
B180: Feedback | E180: Fundamental company data and historical chart data provided by Thomson Reuters (click for restrictions). Real-time quotes provided by BATS Exchange. Real-time index quotes and delayed quotes supplied by Interactive Data Real-Time Services. Fund summary, fund performance and dividend data provided by Morningstar Inc. Analyst recommendations data provided by Zacks Investment Research. StockScouter data provided by Verus Analytics. IPO data provided by Hoover's Inc. Index membership data provided by SIX Telekurs. | AU180: [BRIEFING.COM] Stocks closed out the week on a strong note, helping the broad market book another weekly gain. Europe remained the primary topic of trade. Traders took early cues from Europe, where the region's major bourses bounced because of the fo ... More | BC180: RECENT QUOTES
B181: Site map | AU181: MORE MARKET NEWS | BC181: WATCHLIST
B182: RSS | E182: Japanese stock price data provided by Nomura Research Institute Ltd.; quotes delayed 20 minutes. Canadian fund data provided by CANNEX Financial Exchanges Ltd. | AU182: Stock Ticker | BC182: You're not signed in
B183: © 2011 Microsoft | AU183: Story Stocks | BC183: You’re not signed in to MSN Money, so you’re seeing the Watchlist that is tied to your computer. For a more consistent Watchlist experience, sign in to MSN Money. Learn more
E184: Ad ChoiceFeedback | AU184: In Play | BC184: View full page
E185: RECENT QUOTES | AU185: Short Stories | BC185: SYMBOL
E186: WATCHLIST | AU186: Sponsored by: | BC186: LAST
E187: You're not signed in | AU187: Privacy | BC187: CHANGE
E188: You’re not signed in to MSN Money, so you’re seeing the Watchlist that is tied to your computer. For a more consistent Watchlist experience, sign in to MSN Money. Learn more | AU188: Legal | BC188: SHARES
E189: View full page | AU189: Advertise | BC189: Where's my list? | Update quotes | Clear all lists
E190: SYMBOL | AU190: MSN Worldwide | BC190: Quotes delayed at least 15 min
E191: LAST | AU191: Help | BC191: Sponsored by:
E192: CHANGE | AU192: About our ads | BC192: Privacy
E193: SHARES | AU193: Feedback | BC193: Legal
E194: Where's my list? | Update quotes | Clear all lists | AU194: Site map | BC194: Advertise
E195: Quotes delayed at least 15 min | AU195: RSS | BC195: MSN Worldwide
E196: Sponsored by: | AU196: © 2011 Microsoft | BC196: Help
E197: MARKET UPDATE | BC197: About our ads
E198: [BRIEFING.COM] Stocks closed out the week on a strong note, helping the broad market book another weekly gain. Europe remained the primary topic of trade. Traders took early cues from Europe, where the region's major bourses bounced because of the fo ... More | BC198: Feedback
E199: MORE MARKET NEWS | BC199: Site map
E200: Stock Ticker | BC200: RSS
E201: Story Stocks | BC201: © 2011 Microsoft
E202: In Play
E203: Short Stories
E204: Sponsored by:
E205: Privacy
E206: Legal
E207: Advertise
E208: MSN Worldwide
... 6 more rows

Sheet IE
B1: Annual | K1: Interim
B2: More | K2: More
B4: Autos | K4: Autos
B5: Entertainment | K5: Entertainment
B6: Lifestyle | K6: Lifestyle
B7: Online dating | K7: Online dating
B8: Video | K8: Video
B10: Careers & Jobs | K10: Careers & Jobs
B11: Games | K11: Games
B12: Local Edition | K12: Local Edition
B13: Real Estate & Rentals | K13: Real Estate & Rentals
B14: Weather | K14: Weather
B16: Celebrities | K16: Celebrities
B17: Glo | K17: Glo
B18: Money | K18: Money
B19: Sports | K19: Sports
B20: White Pages | K20: White Pages
B22: Delish | K22: Delish
B23: Health, Diet & Fitness | K23: Health, Diet & Fitness
B24: News | K24: News
B25: Travel | K25: Travel
B26: Full MSN Index | K26: Full MSN Index
B27: Hotmail | K27: Hotmail
B29: Inbox | K29: Inbox
B30: Calendar | K30: Calendar
B31: Contacts | K31: Contacts
B32: Send e-mail | K32: Send e-mail
B33: Messenger | K33: Messenger
B34: Bing | K34: Bing
B35: Make MSN your homepage Make Bing your decision engine | K35: Make MSN your homepage Make Bing your decision engine
B36: Welcome | K36: Welcome
B37: Money | K37: Money
B38: Bing Search: | K38: Bing Search:
B39: Money | K39: Money
B40: | | K40: |
B41: Web | K41: Web
B42: Bing search: | K42: Bing search:
B43: Page options | K43: Page options
B45: Make text larger | K45: Make text larger
B46: enabledShow search suggestions | K46: enabledShow search suggestions
B47: Help | K47: Help
B48: | | K48: |
B49: Sign in | K49: Sign in
B50: Home | K50: Home
B52: News | K52: News
B54: Headlines | K54: Headlines
B55: Video | K55: Video
B56: Investing | K56: Investing
B58: portfolio manager | K58: portfolio manager
B59: markets | K59: markets
B60: stocks | K60: stocks
B61: mutual funds | K61: mutual funds
B62: etfs | K62: etfs
B63: broker center | K63: broker center
B64: investor pro | K64: investor pro
B65: Personal Finance | K65: Personal Finance
B67: Saving & Budgeting | K67: Saving & Budgeting
B68: Credit & Debt | K68: Credit & Debt
B69: Loans | K69: Loans
B70: Retirement | K70: Retirement
B71: Insurance | K71: Insurance
B72: Taxes | K72: Taxes
B73: Your Money | K73: Your Money
B74: My Money | K74: My Money
B76: Real Estate | K76: Real Estate
B78: Careers | K78: Careers
B80: Autos | K80: Autos
B82: Target Corp (NYSE : TGT) | K82: Target Corp (NYSE : TGT)
B83: Trade now | K83: Trade now
B84: Add to Watchlist | K84: Add to Watchlist
B85: Get chart | K85: Get chart
B86: Print report | K86: Print report
B87: Find financial results for: 53.50Up+0.03+0.06%Delayed | K87: Find financial results for: 53.50Up+0.03+0.06%Delayed
B88: MORE ABOUT TGT | K88: MORE ABOUT TGT
B89: SUMMARY | K89: SUMMARY
B90: Quote | K90: Quote
B91: Options | K91: Options
B92: Historical Prices | K92: Historical Prices
B93: CHARTS | K93: CHARTS
B94: Basic | K94: Basic
B95: NEWS | K95: NEWS
B96: Headlines | K96: Headlines
B97: Key Developments | K97: Key Developments
B98: FUNDAMENTALS | K98: FUNDAMENTALS
B99: Financial Highlights | K99: Financial Highlights
B100: Profile | K100: Profile
B101: Key Ratios | K101: Key Ratios
B102: 10-Year Summary | K102: 10-Year Summary
B103: Earnings | K103: Earnings
B104: SEC Filings | K104: SEC Filings
B105: RATINGS/ANALYSIS | K105: RATINGS/ANALYSIS
B106: StockScouter Report | K106: StockScouter Report
B107: Analyst Ratings | K107: Analyst Ratings
B108: INSIDER ACTION | K108: INSIDER ACTION
B109: Insider Trades | K109: Insider Trades
B110: Ownership | K110: Ownership
B111: FINANCIALS | K111: FINANCIALS
B112: Income Statement | K112: Income Statement
B113: Balance Sheet | K113: Balance Sheet
B114: Cash Flow | K114: Cash Flow
B115: 10-Year Summary | K115: 10-Year Summary
B118: You can't view information about this ticker symbol because JavaScript is not enabled for your web browser. To enable JavaScript, consult online Help for your browser. | K118: You can't view information about this ticker symbol because JavaScript is not enabled for your web browser. To enable JavaScript, consult online Help for your browser.
B122: Annual | C122: Interim | K122: Annual | L122: Interim
D123: 2011 | E123: 2010 | F123: 2009 | G123: 2008 | H123: 2007 | M123: 2012 Q3 | N123: 2012 Q2 | O123: 2012 Q1 | P123: 2011 Q4 | Q123: 2011 Q3
B124: Period End Date | D124: 2011-01-29 | E124: 2010-01-30 | F124: 2009-01-31 | G124: 2008-02-02 | H124: 2007-02-03 | K124: Period End Date | M124: 2011-10-29 | N124: 2011-07-30 | O124: 2011-04-30 | P124: 2011-01-29 | Q124: 2010-10-30
B125: Period Length | D125: 52 Weeks | E125: 52 Weeks | F125: 52 Weeks | G125: 52 Weeks | H125: 53 Weeks | K125: Period Length | M125: 13 Weeks | N125: 13 Weeks | O125: 13 Weeks | P125: 13 Weeks | Q125: 13 Weeks
B126: Stmt Source | D126: 10-K | E126: 10-K | F126: 10-K | G126: 10-K | H126: 10-K | K126: Stmt Source | M126: 10-Q | N126: 10-Q | O126: 10-Q | P126: 10-K | Q126: 10-Q
B127: Stmt Source Date | D127: 2011-03-11 | E127: 2010-03-12 | F127: 2009-03-13 | G127: 2009-03-13 | H127: 2009-03-13 | K127: Stmt Source Date | M127: 2011-11-23 | N127: 2011-08-25 | O127: 2011-05-26 | P127: 2011-03-11 | Q127: 2010-12-03
B128: Stmt Update Type | D128: Updated | E128: Updated | F128: Updated | G128: Reclassified | H128: Reclassified | K128: Stmt Update Type | M128: Updated | N128: Updated | O128: Updated | P128: Updated | Q128: Updated
B130: Revenue | D130: 67390 | E130: 65357 | F130: 64948 | G130: 63367 | H130: 59490 | K130: Revenue | M130: 16402 | N130: 16240 | O130: 15935 | P130: 20661 | Q130: 15605
B131: Total Revenue | D131: 2084-07-02 | E131: 2078-12-08 | F131: 2077-10-25 | G131: 2073-06-27 | H131: 2062-11-15 | K131: Total Revenue | M131: 1944-11-26 | N131: 1944-06-17 | O131: 1943-08-17 | P131: 1956-07-25 | Q131: 1942-09-21
B133: Cost of Revenue, Total | D133: 46585 | E133: 45583 | F133: 45766 | G133: 43766 | H133: 41073 | K133: Cost of Revenue, Total | M133: 11274 | N133: 10958 | O133: 10926 | P133: 14625 | Q133: 10760
B134: Gross Profit | D134: 1956-12-16 | E134: 1954-02-19 | F134: 1952-07-07 | G134: 1953-08-30 | H134: 1950-06-03 | K134: Gross Profit | M134: 1914-01-14 | N134: 1914-06-17 | O134: 1913-09-17 | P134: 1916-07-10 | Q134: 1913-04-06
B136: Selling/General/Administrative Expenses, Total | D136: 13469 | E136: 13078 | F136: 12954 | G136: 12670 | H136: 11852 | K136: Selling/General/Administrative Expenses, Total | M136: 3525 | N136: 3473 | O136: 3233 | P136: 3720 | Q136: 3345
B137: Research & Development | D137: 0 | E137: 0 | F137: 0 | G137: 0 | H137: 0 | K137: Research & Development | M137: 0 | N137: 0 | O137: 0 | P137: 0 | Q137: 0
B138: Depreciation/Amortization | D138: 2084 | E138: 2023 | F138: 1826 | G138: 1659 | H138: 1496 | K138: Depreciation/Amortization | M138: 546 | N138: 509 | O138: 512 | P138: 538 | Q138: 533
B139: Interest Expense (Income), Net Operating | D139: 0 | E139: 0 | F139: 0 | G139: 0 | H139: 0 | K139: Interest Expense (Income), Net Operating | M139: 0 | N139: 0 | O139: 0 | P139: 0 | Q139: 0
B140: Unusual Expense (Income) | D140: 0 | E140: 0 | F140: 0 | G140: 0 | H140: 0 | K140: Unusual Expense (Income) | M140: 0 | N140: 0 | O140: 0 | P140: 0 | Q140: 0
B141: Other Operating Expenses, Total | D141: 0 | E141: 0 | F141: 0 | G141: 0 | H141: 0 | K141: Other Operating Expenses, Total | M141: 0 | N141: 0 | O141: 0 | P141: 0 | Q141: 0
B142: Operating Income | D142: 4495 | E142: 3872 | F142: 3536 | G142: 4625 | H142: 4497 | K142: Operating Income | M142: 857 | N142: 1109 | O142: 1081 | P142: 1588 | Q142: 773
B144: Interest Income (Expense), Net Non-Operating | D144: 0 | E144: 0 | F144: 0 | G144: 0 | H144: 0 | K144: Interest Income (Expense), Net Non-Operating | M144: 0 | N144: 0 | O144: 0 | P144: 0 | Q144: 0
B145: Gain (Loss) on Sale of Assets | D145: 0 | E145: 0 | F145: 0 | G145: 0 | H145: 0 | K145: Gain (Loss) on Sale of Assets | M145: 0 | N145: 0 | O145: 0 | P145: 0 | Q145: 0
B146: Other, Net | D146: 0 | E146: 0 | F146: 0 | G146: 0 | H146: 0 | K146: Other, Net | M146: 0 | N146: 0 | O146: 0 | P146: 0 | Q146: 0
B147: Income Before Tax | D147: 4495 | E147: 3872 | F147: 3536 | G147: 4625 | H147: 4497 | K147: Income Before Tax | M147: 857 | N147: 1109 | O147: 1081 | P147: 1588 | Q147: 773
B149: Income Tax - Total | D149: 1575 | E149: 1384 | F149: 1322 | G149: 1776 | H149: 1710 | K149: Income Tax - Total | M149: 302 | N149: 405 | O149: 392 | P149: 553 | Q149: 238
B150: Income After Tax | D150: 2920 | E150: 2488 | F150: 2214 | G150: 2849 | H150: 2787 | K150: Income After Tax | M150: 555 | N150: 704 | O150: 689 | P150: 1035 | Q150: 535
B152: Minority Interest | D152: 0 | E152: 0 | F152: 0 | G152: 0 | H152: 0 | K152: Minority Interest | M152: 0 | N152: 0 | O152: 0 | P152: 0 | Q152: 0
B153: Equity In Affiliates | D153: 0 | E153: 0 | F153: 0 | G153: 0 | H153: 0 | K153: Equity In Affiliates | M153: 0 | N153: 0 | O153: 0 | P153: 0 | Q153: 0
B154: U.S. GAAP Adjustment | D154: 0 | E154: 0 | F154: 0 | G154: 0 | H154: 0 | K154: U.S. GAAP Adjustment | M154: 0 | N154: 0 | O154: 0 | P154: 0 | Q154: 0
B155: Net Income Before Extra. Items | D155: 2920 | E155: 2488 | F155: 2214 | G155: 2849 | H155: 2787 | K155: Net Income Before Extra. Items | M155: 555 | N155: 704 | O155: 689 | P155: 1035 | Q155: 535
B157: Total Extraordinary Items | D157: 0 | E157: 0 | F157: 0 | G157: 0 | H157: 0 | K157: Total Extraordinary Items | M157: 0 | N157: 0 | O157: 0 | P157: 0 | Q157: 0
B158: Net Income | D158: 2920 | E158: 2488 | F158: 2214 | G158: 2849 | H158: 2787 | K158: Net Income | M158: 555 | N158: 704 | O158: 689 | P158: 1035 | Q158: 535
B161: Total Adjustments to Net Income | D161: 0 | E161: 0 | F161: 0 | G161: 0 | H161: 0 | K161: Total Adjustments to Net Income | M161: 0 | N161: 0 | O161: 0 | P161: 0 | Q161: 0
B162: Preferred Dividends | C162: 0 | D162: 0 | E162: 0 | F162: 0 | G162: 0 | K162: Preferred Dividends | L162: 0 | M162: 0 | N162: 0 | O162: 0 | P162: 0
B163: General Partners' Distributions | C163: 0 | D163: 0 | E163: 0 | F163: 0 | G163: 0 | K163: General Partners' Distributions | L163: 0 | M163: 0 | N163: 0 | O163: 0 | P163: 0
B165: Basic Weighted Average Shares | D165: 723.6 | E165: 752 | F165: 770.4 | G165: 845.4 | H165: 861.9 | K165: Basic Weighted Average Shares | M165: 673.2 | N165: 680.8 | O165: 692.6 | P165: 708.1 | Q165: 715.4
B166: Basic EPS Excluding Extraordinary Items | D166: 4.04 | E166: 3.31 | F166: 2.87 | G166: 3.37 | H166: 3.23 | K166: Basic EPS Excluding Extraordinary Items | M166: 0.82 | N166: 1.03 | O166: 0.99 | P166: 1.46 | Q166: 0.75
B167: Basic EPS Including Extraordinary Items | D167: 4.04 | E167: 3.31 | F167: 2.87 | G167: 3.37 | H167: 3.23 | K167: Basic EPS Including Extraordinary Items | M167: 0.82 | N167: 1.03 | O167: 0.99 | P167: 1.46 | Q167: 0.75
B169: Diluted Weighted Average Shares | D169: 729.4 | E169: 754.8 | F169: 773.6 | G169: 850.8 | H169: 868.6 | K169: Diluted Weighted Average Shares | M169: 678.3 | N169: 685.1 | O169: 697.4 | P169: 714.4 | Q169: 721
B170: Diluted EPS Excluding Extrordinary Items | D170: 4 | E170: 3.3 | F170: 2.86 | G170: 3.35 | H170: 3.21 | K170: Diluted EPS Excluding Extrordinary Items | M170: 0.82 | N170: 1.03 | O170: 0.99 | P170: 1.45 | Q170: 0.74
B171: Diluted EPS Including Extraordinary Items | D171: 4 | E171: 3.3 | F171: 2.86 | G171: 3.35 | H171: 3.21 | K171: Diluted EPS Including Extraordinary Items | M171: 0.82 | N171: 1.03 | O171: 0.99 | P171: 1.45 | Q171: 0.74
B173: Dividends per Share - Common Stock Primary Issue | D173: 0.92 | E173: 0.67 | F173: 0.62 | G173: 0.54 | H173: 0.46 | K173: Dividends per Share - Common Stock Primary Issue | M173: 0.3 | N173: 0.3 | O173: 0.25 | P173: 0.25 | Q173: 0.25
B174: Gross Dividends - Common Stock | D174: 659 | E174: 503 | F174: 471 | G174: 454 | H174: 396 | K174: Gross Dividends - Common Stock | M174: 202 | N174: 202 | O174: 172 | P174: 176 | Q174: 177
B175: Interest Expense, Supplemental | D175: 760 | E175: 804 | F175: 894 | G175: 668 | H175: 597 | K175: Interest Expense, Supplemental | M175: 202 | N175: 192 | O175: 183 | P175: 191 | Q175: 195
B176: Depreciation, Supplemental | D176: 2060 | E176: 1999 | F176: 1804 | G176: 1644 | H176: 1509 | K176: Depreciation, Supplemental | M176: 546 | N176: 509 | O176: 512 | P176: 539 | Q176: 533
B178: Normalized EBITDA | D178: 7336 | E178: 6696 | F178: 6227 | G178: 6931 | H178: 6565 | K178: Normalized EBITDA | M178: 1603 | N178: 1809 | O178: 1776 | P178: 2317 | Q178: 1500
B179: Normalized EBIT | D179: 5252 | E179: 4673 | F179: 4402 | G179: 5272 | H179: 5069 | K179: Normalized EBIT | M179: 1057 | N179: 1300 | O179: 1264 | P179: 1778 | Q179: 967
B180: Normalized Income Before Tax | D180: 4495 | E180: 3872 | F180: 3536 | G180: 4625 | H180: 4497 | K180: Normalized Income Before Tax | M180: 857 | N180: 1109 | O180: 1081 | P180: 1588 | Q180: 773
B181: Normalized Income After Taxes | D181: 2920 | E181: 2488 | F181: 2214 | G181: 2849 | H181: 2787 | K181: Normalized Income After Taxes | M181: 555 | N181: 704 | O181: 689 | P181: 1035 | Q181: 535
B182: Normalized Income Available to Common | D182: 2920 | E182: 2488 | F182: 2214 | G182: 2849 | H182: 2787 | K182: Normalized Income Available to Common | M182: 555 | N182: 704 | O182: 689 | P182: 1035 | Q182: 535
B184: Basic Normalized EPS | D184: 4.04 | E184: 3.31 | F184: 2.87 | G184: 3.37 | H184: 3.23 | K184: Basic Normalized EPS | M184: 0.82 | N184: 1.03 | O184: 0.99 | P184: 1.46 | Q184: 0.75
B185: Diluted Normalized EPS | D185: 4 | E185: 3.3 | F185: 2.86 | G185: 3.35 | H185: 3.21 | K185: Diluted Normalized EPS | M185: 0.82 | N185: 1.03 | O185: 0.99 | P185: 1.45 | Q185: 0.74
B186: Amortization of Intangibles | D186: 24 | E186: 24 | F186: 21 | G186: 15 | H186: -13
K187: Financial data in U.S. Dollars
B188: Financial data in U.S. Dollars | K188: Values in Millions (Except for per share items)
B189: Values in Millions (Except for per share items)
K190: Business Type: Industry
B191: Business Type: Industry
K192: Financial statements are prepared in this standard format to allow direct comparisons of all companies and industries across multiple time frames.
B193: Financial statements are prepared in this standard format to allow direct comparisons of all companies and industries across multiple time frames.
K194: See 10K and 10Q SEC Filings for as reported statements
B195: See 10K and 10Q SEC Filings for as reported statements
K196: DATA PROVIDERS
B197: DATA PROVIDERS
K198: Copyright © 2011 Microsoft. All rights reserved.
B199: Copyright © 2011 Microsoft. All rights reserved.
K200: Quotes are real-time for NASDAQ, NYSE and AMEX. See delay times for other exchanges.
B201: Quotes are real-time for NASDAQ, NYSE and AMEX. See delay times for other exchanges.
K202: Fundamental company data and historical chart data provided by Thomson Reuters (click for restrictions). Real-time quotes provided by BATS Exchange. Real-time index quotes and delayed quotes supplied by Interactive Data Real-Time Services. Fund summary, fund performance and dividend data provided by Morningstar Inc. Analyst recommendations provided by Zacks Investment Research. StockScouter data provided by Verus Analytics. IPO data provided by Hoover's Inc. Index membership data provided by SIX Telekurs.
B203: Fundamental company data and historical chart data provided by Thomson Reuters (click for restrictions). Real-time quotes provided by BATS Exchange. Real-time index quotes and delayed quotes supplied by Interactive Data Real-Time Services. Fund summary, fund performance and dividend data provided by Morningstar Inc. Analyst recommendations provided by Zacks Investment Research. StockScouter data provided by Verus Analytics. IPO data provided by Hoover's Inc. Index membership data provided by SIX Telekurs.
K204: Japanese stock price data provided by Nomura Research Institute Ltd.; quotes delayed 20 minutes. Canadian fund data provided by CANNEX Financial Exchanges Ltd.
B205: Japanese stock price data provided by Nomura Research Institute Ltd.; quotes delayed 20 minutes. Canadian fund data provided by CANNEX Financial Exchanges Ltd.
K206: Privacy
B207: Privacy | K207: Legal
B208: Legal | K208: Advertise
B209: Advertise | K209: MSN Worldwide
B210: MSN Worldwide | K210: Help
B211: Help | K211: About our ads
B212: About our ads | K212: Feedback
B213: Feedback | K213: Site map
B214: Site map | K214: RSS
B215: RSS | K215: © 2011 Microsoft
B216: © 2011 Microsoft

Sheet CFS
B1: Annual | J1: Interim
B2: More | J2: More
B4: Autos | J4: Autos
B5: Entertainment | J5: Entertainment
B6: Lifestyle | J6: Lifestyle
B7: Online dating | J7: Online dating
B8: Video | J8: Video
B10: Careers & Jobs | J10: Careers & Jobs
B11: Games | J11: Games
B12: Local Edition | J12: Local Edition
B13: Real Estate & Rentals | J13: Real Estate & Rentals
B14: Weather | J14: Weather
B16: Celebrities | J16: Celebrities
B17: Glo | J17: Glo
B18: Money | J18: Money
B19: Sports | J19: Sports
B20: White Pages | J20: White Pages
B22: Delish | J22: Delish
B23: Health, Diet & Fitness | J23: Health, Diet & Fitness
B24: News | J24: News
B25: Travel | J25: Travel
B26: Full MSN Index | J26: Full MSN Index
B27: Hotmail | J27: Hotmail
B29: Inbox | J29: Inbox
B30: Calendar | J30: Calendar
B31: Contacts | J31: Contacts
B32: Send e-mail | J32: Send e-mail
B33: Messenger | J33: Messenger
B34: Bing | J34: Bing
B35: Make MSN your homepage Make Bing your decision engine | J35: Make MSN your homepage Make Bing your decision engine
B36: Welcome | J36: Welcome
B37: Money | J37: Money
B38: Bing Search: | J38: Bing Search:
B39: Money | J39: Money
B40: | | J40: |
B41: Web | J41: Web
B42: Bing search: | J42: Bing search:
B43: Page options | J43: Page options
B45: Make text larger | J45: Make text larger
B46: enabledShow search suggestions | J46: enabledShow search suggestions
B47: Help | J47: Help
B48: | | J48: |
B49: Sign in | J49: Sign in
B50: Home | J50: Home
B52: News | J52: News
B54: Headlines | J54: Headlines
B55: Video | J55: Video
B56: Investing | J56: Investing
B58: portfolio manager | J58: portfolio manager
B59: markets | J59: markets
B60: stocks | J60: stocks
B61: mutual funds | J61: mutual funds
B62: etfs | J62: etfs
B63: broker center | J63: broker center
B64: investor pro | J64: investor pro
B65: Personal Finance | J65: Personal Finance
B67: Saving & Budgeting | J67: Saving & Budgeting
B68: Credit & Debt | J68: Credit & Debt
B69: Loans | J69: Loans
B70: Retirement | J70: Retirement
B71: Insurance | J71: Insurance
B72: Taxes | J72: Taxes
B73: Your Money | J73: Your Money
B74: My Money | J74: My Money
B76: Real Estate | J76: Real Estate
B78: Careers | J78: Careers
B80: Autos | J80: Autos
B82: Target Corp (NYSE : TGT) | J82: Target Corp (NYSE : TGT)
B83: Trade now | J83: Trade now
B84: Add to Watchlist | J84: Add to Watchlist
B85: Get chart | J85: Get chart
B86: Print report | J86: Print report
B87: Find financial results for: 53.50Up+0.03+0.06%Delayed | J87: Find financial results for: 53.50Up+0.03+0.06%Delayed
B88: MORE ABOUT TGT | J88: MORE ABOUT TGT
B89: SUMMARY | J89: SUMMARY
B90: Quote | J90: Quote
B91: Options | J91: Options
B92: Historical Prices | J92: Historical Prices
B93: CHARTS | J93: CHARTS
B94: Basic | J94: Basic
B95: NEWS | J95: NEWS
B96: Headlines | J96: Headlines
B97: Key Developments | J97: Key Developments
B98: FUNDAMENTALS | J98: FUNDAMENTALS
B99: Financial Highlights | J99: Financial Highlights
B100: Profile | J100: Profile
B101: Key Ratios | J101: Key Ratios
B102: 10-Year Summary | J102: 10-Year Summary
B103: Earnings | J103: Earnings
B104: SEC Filings | J104: SEC Filings
B105: RATINGS/ANALYSIS | J105: RATINGS/ANALYSIS
B106: StockScouter Report | J106: StockScouter Report
B107: Analyst Ratings | J107: Analyst Ratings
B108: INSIDER ACTION | J108: INSIDER ACTION
B109: Insider Trades | J109: Insider Trades
B110: Ownership | J110: Ownership
B111: FINANCIALS | J111: FINANCIALS
B112: Income Statement | J112: Income Statement
B113: Balance Sheet | J113: Balance Sheet
B114: Cash Flow | J114: Cash Flow
B115: 10-Year Summary | J115: 10-Year Summary
B118: You can't view information about this ticker symbol because JavaScript is not enabled for your web browser. To enable JavaScript, consult online Help for your browser. | J118: You can't view information about this ticker symbol because JavaScript is not enabled for your web browser. To enable JavaScript, consult online Help for your browser.
B122: Annual | C122: Interim | J122: Annual | K122: Interim
D123: 2011 | E123: 2010 | F123: 2009 | G123: 2008 | H123: 2007 | L123: 2012 Q3 | M123: 2012 Q2 | N123: 2012 Q1 | O123: 2011 Q4 | P123: 2011 Q3
B124: Period End Date | D124: 2011-01-29 | E124: 2010-01-30 | F124: 2009-01-31 | G124: 2008-02-02 | H124: 2007-02-03 | J124: Period End Date | L124: 2011-10-29 | M124: 2011-07-30 | N124: 2011-04-30 | O124: 2011-01-29 | P124: 2010-10-30
B125: Period Length | D125: 52 Weeks | E125: 52 Weeks | F125: 52 Weeks | G125: 52 Weeks | H125: 53 Weeks | J125: Period Length | L125: 39 Weeks | M125: 26 Weeks | N125: 13 Weeks | O125: 52 Weeks | P125: 39 Weeks
B126: Stmt Source | D126: 10-K | E126: 10-K | F126: 10-K | G126: 10-K | H126: 10-K | J126: Stmt Source | L126: 10-Q | M126: 10-Q | N126: 10-Q | O126: 10-K | P126: 10-Q
B127: Stmt Source Date | D127: 2011-03-11 | E127: 2010-03-12 | F127: 2009-03-13 | G127: 2008-03-13 | H127: 2007-03-15 | J127: Stmt Source Date | L127: 2011-11-23 | M127: 2011-08-25 | N127: 2011-05-26 | O127: 2011-03-11 | P127: 2010-12-03
B128: Stmt Update Type | D128: Updated | E128: Updated | F128: Updated | G128: Updated | H128: Updated | J128: Stmt Update Type | L128: Updated | M128: Updated | N128: Updated | O128: Updated | P128: Updated
B130: Net Income/Starting Line | D130: 2920 | E130: 2488 | F130: 2214 | G130: 2849 | H130: 2787 | J130: Net Income/Starting Line | L130: 1948 | M130: 1393 | N130: 689 | O130: 2920 | P130: 1885
B131: Depreciation/Depletion | D131: 1905-09-14 | E131: 1905-07-15 | F131: 1904-12-30 | G131: 1904-07-16 | H131: 1904-02-04 | J131: Depreciation/Depletion | L131: 1904-04-16 | M131: 1902-10-18 | N131: 1901-05-26 | O131: 1905-09-14 | P131: 1904-03-24
B132: Amortization | D132: 00:00:00 | E132: 00:00:00 | F132: 00:00:00 | G132: 00:00:00 | H132: 00:00:00 | J132: Amortization | L132: 00:00:00 | M132: 00:00:00 | N132: 00:00:00 | O132: 00:00:00 | P132: 00:00:00
B133: Deferred Taxes | D133: 445 | E133: 364 | F133: 91 | G133: -70 | H133: -201 | J133: Deferred Taxes | L133: 397 | M133: 122 | N133: 100 | O133: 445 | P133: 249
B134: Non-Cash Items | D134: 1901-05-06 | E134: 1904-01-27 | F134: 1904-04-26 | G134: 1901-09-25 | H134: 1901-05-11 | J134: Non-Cash Items | L134: 1900-07-22 | M134: 1900-05-12 | N134: 1900-02-21 | O134: 1901-05-06 | P134: 1901-10-23
B135: Unusual Items | C135: 0 | D135: 1900-04-06 | E135: 1900-02-02 | F135: 1900-01-28 | G135: 1900-02-22 | J135: Unusual Items | K135: 0 | L135: 00:00:00 | M135: 00:00:00 | N135: 00:00:00 | O135: 1900-01-12
B136: Other Non-Cash Items | C136: 492 | D136: 1391 | E136: 1545 | F136: 606 | G136: 444 | J136: Other Non-Cash Items | K136: 204 | L136: 133 | M136: 52 | N136: 492 | O136: 650
B137: Changes in Working Capital | D137: -670 | E137: -482 | F137: -1279 | G137: -947 | H137: 283 | J137: Changes in Working Capital | L137: -1142 | M137: -334 | N137: -301 | O137: -670 | P137: -1489
B138: Accounts Receivable | C138: -78 | D138: -57 | E138: -458 | F138: -602 | G138: -226 | J138: Accounts Receivable | K138: 120 | L138: 143 | M138: 149 | N138: -78 | O138: 241
B139: Inventories | C139: -417 | D139: -474 | E139: 77 | F139: -525 | G139: -431 | J139: Inventories | K139: -2294 | L139: -330 | M139: -99 | N139: -417 | O139: -2371
B140: Other Assets | C140: -336 | D140: -407 | E140: -300 | F140: -38 | G140: -25 | J140: Other Assets | K140: -82 | L140: 96 | M140: 98 | N140: -336 | O140: -305
B141: Accounts Payable | C141: 115 | D141: 174 | E141: -389 | F141: 111 | G141: 435 | J141: Accounts Payable | K141: 1428 | L141: -119 | M141: -330 | N141: 115 | O141: 1250
B142: Accrued Expenses | C142: 149 | D142: 257 | E142: -230 | F142: 62 | G142: 389 | J142: Accrued Expenses | K142: -360 | L142: -129 | M142: -103 | N142: 149 | O142: -141
B143: Taxes Payable | C143: 0 | D143: 0 | E143: 0 | F143: 0 | G143: 41 | J143: Other Liabilities | K143: 46 | L143: 5 | M143: -16 | N143: -103 | O143: -163
B144: Other Liabilities | C144: -103 | D144: 25 | E144: -139 | F144: 124 | G144: 100 | J144: Cash from Operating Activities | L144: 2975 | M144: 2336 | N144: 1052 | O144: 5271 | P144: 2852
B145: Other Operating Cash Flow | C145: 0 | D145: 0 | E145: 160 | F145: -79 | G145: 0
B146: Cash from Operating Activities | D146: 5271 | E146: 5881 | F146: 4430 | G146: 4125 | H146: 4862 | J146: Capital Expenditures | L146: -3750 | M146: -2379 | N146: -632 | O146: -2129 | P146: -1607
J147: Purchase of Fixed Assets | K147: -3750 | L147: -2379 | M147: -632 | N147: -2129 | O147: -1607
B148: Capital Expenditures | D148: -2129 | E148: -1729 | F148: -3547 | G148: -4369 | H148: -3928 | J148: Other Investing Cash Flow Items, Total | L148: 146 | M148: 244 | N148: 262 | O148: 385 | P148: 291
B149: Purchase of Fixed Assets | C149: -2129 | D149: -1729 | E149: -3547 | F149: -4369 | G149: -3928 | J149: Sale of Fixed Assets | K149: 7 | L149: 2 | M149: 1 | N149: 69 | O149: 36
B150: Other Investing Cash Flow Items, Total | D150: 385 | E150: 26 | F150: -826 | G150: -1826 | H150: -765 | J150: Other Investing Cash Flow | K150: 139 | L150: 242 | M150: 261 | N150: 316 | O150: 255
B151: Sale of Fixed Assets | C151: 69 | D151: 33 | E151: 39 | F151: 95 | G151: 62 | J151: Cash from Investing Activities | L151: -3604 | M151: -2135 | N151: -370 | O151: -1744 | P151: -1316
B152: Other Investing Cash Flow | C152: 316 | D152: -7 | E152: -865 | F152: -1921 | G152: -827
B153: Cash from Investing Activities | D153: -1744 | E153: -1703 | F153: -4373 | G153: -6195 | H153: -4693 | J153: Financing Cash Flow Items | L153: 1 | M153: 20 | N153: 0 | O153: 0 | P153: 7
J154: Other Financing Cash Flow | K154: 1 | L154: 20 | M154: 0 | N154: 0 | O154: 7
B155: Financing Cash Flow Items | D155: 0 | E155: 0 | F155: -8 | G155: -375 | H155: -5 | J155: Total Cash Dividends Paid | L155: -549 | M155: -346 | N155: -174 | O155: -609 | P155: -432
B156: Other Financing Cash Flow | C156: 0 | D156: 0 | E156: -8 | F156: -375 | G156: -5 | J156: Issuance (Retirement) of Stock, Net | L156: -1627 | M156: -1459 | N156: -796 | O156: -2158 | P156: -1922
B157: Total Cash Dividends Paid | D157: -609 | E157: -496 | F157: -465 | G157: -442 | H157: -380 | J157: Issuance (Retirement) of Debt, Net | L157: 1939 | M157: 762 | N157: 0 | O157: -1248 | P157: -453
B158: Issuance (Retirement) of Stock, Net | D158: -2158 | E158: -376 | F158: -2772 | G158: -2267 | H158: -720 | J158: Cash from Financing Activities | L158: -236 | M158: -1023 | N158: -970 | O158: -4015 | P158: -2800
B159: Issuance (Retirement) of Debt, Net | D159: -1248 | E159: -1970 | F159: 1602 | G159: 6791 | H159: 101
B160: Cash from Financing Activities | D160: -4015 | E160: -2842 | F160: -1643 | G160: 3707 | H160: -1004 | J160: Foreign Exchange Effects | L160: -26 | M160: 0 | N160: 0 | O160: 0 | P160: 0
J161: Net Change in Cash | L161: -891 | M161: -822 | N161: -288 | O161: -488 | P161: -1264
B162: Foreign Exchange Effects | D162: 0 | E162: 0 | F162: 0 | G162: 0 | H162: 0
B163: Net Change in Cash | D163: -488 | E163: 1336 | F163: -1586 | G163: 1637 | H163: -835
J164: Net Cash - Beginning Balance | L164: 1712 | M164: 1712 | N164: 1712 | O164: 2200 | P164: 2200
J165: Net Cash - Ending Balance | L165: 821 | M165: 890 | N165: 1424 | O165: 1712 | P165: 936
B166: Net Cash - Beginning Balance | D166: 2200 | E166: 864 | F166: 2450 | G166: 813 | H166: 1648
B167: Net Cash - Ending Balance | D167: 1712 | E167: 2200 | F167: 864 | G167: 2450 | H167: 813 | J167: Financial data in U.S. Dollars
J168: Values in Millions (Except for per share items)
B169: Financial data in U.S. Dollars
B170: Values in Millions (Except for per share items) | J170: Business Type: Industry
B172: Business Type: Industry | J172: Financial statements are prepared in this standard format to allow direct comparisons of all companies and industries across multiple time frames.
B174: Financial statements are prepared in this standard format to allow direct comparisons of all companies and industries across multiple time frames. | J174: See 10K and 10Q SEC Filings for as reported statements
B176: See 10K and 10Q SEC Filings for as reported statements | J176: DATA PROVIDERS
B178: DATA PROVIDERS | J178: Copyright © 2011 Microsoft. All rights reserved.
B180: Copyright © 2011 Microsoft. All rights reserved. | J180: Quotes are real-time for NASDAQ, NYSE and AMEX. See delay times for other exchanges.
B182: Quotes are real-time for NASDAQ, NYSE and AMEX. See delay times for other exchanges. | J182: Fundamental company data and historical chart data provided by Thomson Reuters (click for restrictions). Real-time quotes provided by BATS Exchange. Real-time index quotes and delayed quotes supplied by Interactive Data Real-Time Services. Fund summary, fund performance and dividend data provided by Morningstar Inc. Analyst recommendations provided by Zacks Investment Research. StockScouter data provided by Verus Analytics. IPO data provided by Hoover's Inc. Index membership data provided by SIX Telekurs.
B184: Fundamental company data and historical chart data provided by Thomson Reuters (click for restrictions). Real-time quotes provided by BATS Exchange. Real-time index quotes and delayed quotes supplied by Interactive Data Real-Time Services. Fund summary, fund performance and dividend data provided by Morningstar Inc. Analyst recommendations provided by Zacks Investment Research. StockScouter data provided by Verus Analytics. IPO data provided by Hoover's Inc. Index membership data provided by SIX Telekurs. | J184: Japanese stock price data provided by Nomura Research Institute Ltd.; quotes delayed 20 minutes. Canadian fund data provided by CANNEX Financial Exchanges Ltd.
B186: Japanese stock price data provided by Nomura Research Institute Ltd.; quotes delayed 20 minutes. Canadian fund data provided by CANNEX Financial Exchanges Ltd. | J186: Privacy
J187: Legal
B188: Privacy | J188: Advertise
B189: Legal | J189: MSN Worldwide
B190: Advertise | J190: Help
B191: MSN Worldwide | J191: About our ads
B192: Help | J192: Feedback
B193: About our ads | J193: Site map
B194: Feedback | J194: RSS
B195: Site map | J195: © 2011 Microsoft
B196: RSS
B197: © 2011 Microsoft

Sheet BS
B1: Annual | J1: Interim
B2: More | J2: More
B4: Autos | J4: Autos
B5: Entertainment | J5: Entertainment
B6: Lifestyle | J6: Lifestyle
B7: Online dating | J7: Online dating
B8: Video | J8: Video
B10: Careers & Jobs | J10: Careers & Jobs
B11: Games | J11: Games
B12: Local Edition | J12: Local Edition
B13: Real Estate & Rentals | J13: Real Estate & Rentals
B14: Weather | J14: Weather
B16: Celebrities | J16: Celebrities
B17: Glo | J17: Glo
B18: Money | J18: Money
B19: Sports | J19: Sports
B20: White Pages | J20: White Pages
B22: Delish | J22: Delish
B23: Health, Diet & Fitness | J23: Health, Diet & Fitness
B24: News | J24: News
B25: Travel | J25: Travel
B26: Full MSN Index | J26: Full MSN Index
B27: Hotmail | J27: Hotmail
B29: Inbox | J29: Inbox
B30: Calendar | J30: Calendar
B31: Contacts | J31: Contacts
B32: Send e-mail | J32: Send e-mail
B33: Messenger | J33: Messenger
B34: Bing | J34: Bing
B35: Make MSN your homepage Make Bing your decision engine | J35: Make MSN your homepage Make Bing your decision engine
B36: Welcome | J36: Welcome
B37: Money | J37: Money
B38: Bing Search: | J38: Bing Search:
B39: Money | J39: Money
B40: | | J40: |
B41: Web | J41: Web
B42: Bing search: | J42: Bing search:
B43: Page options | J43: Page options
B45: Make text larger | J45: Make text larger
B46: enabledShow search suggestions | J46: enabledShow search suggestions
B47: Help | J47: Help
B48: | | J48: |
B49: Sign in | J49: Sign in
B50: Home | J50: Home
B52: News | J52: News
B54: Headlines | J54: Headlines
B55: Video | J55: Video
B56: Investing | J56: Investing
B58: portfolio manager | J58: portfolio manager
B59: markets | J59: markets
B60: stocks | J60: stocks
B61: mutual funds | J61: mutual funds
B62: etfs | J62: etfs
B63: broker center | J63: broker center
B64: investor pro | J64: investor pro
B65: Personal Finance | J65: Personal Finance
B67: Saving & Budgeting | J67: Saving & Budgeting
B68: Credit & Debt | J68: Credit & Debt
B69: Loans | J69: Loans
B70: Retirement | J70: Retirement
B71: Insurance | J71: Insurance
B72: Taxes | J72: Taxes
B73: Your Money | J73: Your Money
B74: My Money | J74: My Money
B76: Real Estate | J76: Real Estate
B78: Careers | J78: Careers
B80: Autos | J80: Autos
B82: Target Corp (NYSE : TGT) | J82: Target Corp (NYSE : TGT)
B83: Trade now | J83: Trade now
B84: Add to Watchlist | J84: Add to Watchlist
B85: Get chart | J85: Get chart
B86: Print report | J86: Print report
B87: Find financial results for: 53.50Up+0.03+0.06%Delayed | J87: Find financial results for: 53.50Up+0.03+0.06%Delayed
B88: MORE ABOUT TGT | J88: MORE ABOUT TGT
B89: SUMMARY | J89: SUMMARY
B90: Quote | J90: Quote
B91: Options | J91: Options
B92: Historical Prices | J92: Historical Prices
B93: CHARTS | J93: CHARTS
B94: Basic | J94: Basic
B95: NEWS | J95: NEWS
B96: Headlines | J96: Headlines
B97: Key Developments | J97: Key Developments
B98: FUNDAMENTALS | J98: FUNDAMENTALS
B99: Financial Highlights | J99: Financial Highlights
B100: Profile | J100: Profile
B101: Key Ratios | J101: Key Ratios
B102: 10-Year Summary | J102: 10-Year Summary
B103: Earnings | J103: Earnings
B104: SEC Filings | J104: SEC Filings
B105: RATINGS/ANALYSIS | J105: RATINGS/ANALYSIS
B106: StockScouter Report | J106: StockScouter Report
B107: Analyst Ratings | J107: Analyst Ratings
B108: INSIDER ACTION | J108: INSIDER ACTION
B109: Insider Trades | J109: Insider Trades
B110: Ownership | J110: Ownership
B111: FINANCIALS | J111: FINANCIALS
B112: Income Statement | J112: Income Statement
B113: Balance Sheet | J113: Balance Sheet
B114: Cash Flow | J114: Cash Flow
B115: 10-Year Summary | J115: 10-Year Summary
B118: You can't view information about this ticker symbol because JavaScript is not enabled for your web browser. To enable JavaScript, consult online Help for your browser. | J118: You can't view information about this ticker symbol because JavaScript is not enabled for your web browser. To enable JavaScript, consult online Help for your browser.
B122: Annual | C122: Interim | J122: Annual | K122: Interim
D123: 2011 | E123: 2010 | F123: 2009 | G123: 2008 | H123: 2007 | L123: 2012 Q3 | M123: 2012 Q2 | N123: 2012 Q1 | O123: 2011 Q4 | P123: 2011 Q3
B124: Period End Date | D124: 2011-01-29 | E124: 2010-01-30 | F124: 2009-01-31 | G124: 2008-02-02 | H124: 2007-02-03 | J124: Period End Date | L124: 2011-10-29 | M124: 2011-07-30 | N124: 2011-04-30 | O124: 2011-01-29 | P124: 2010-10-30
B126: Stmt Source | D126: 10-K | E126: 10-K | F126: 10-K | G126: 10-K | H126: 10-K | J126: Stmt Source | L126: 10-Q | M126: 10-Q | N126: 10-Q | O126: 10-K | P126: 10-Q
B127: Stmt Source Date | D127: 2011-03-11 | E127: 2010-03-12 | F127: 2009-03-13 | G127: 2009-03-13 | H127: 2007-03-15 | J127: Stmt Source Date | L127: 2011-11-23 | M127: 2011-08-25 | N127: 2011-05-26 | O127: 2011-03-11 | P127: 2010-12-03
B128: Stmt Update Type | D128: Updated | E128: Updated | F128: Updated | G128: Reclassified | H128: Updated | J128: Stmt Update Type | L128: Updated | M128: Updated | N128: Updated | O128: Updated | P128: Updated
B130: Assets | J130: Assets
B131: Cash and Short Term Investments | D131: 1904-09-07 | E131: 1906-01-08 | F131: 1902-05-13 | G131: 1906-09-15 | H131: 1902-03-23 | J131: Cash and Short Term Investments | L131: 1902-03-31 | M131: 1902-06-08 | N131: 1903-11-24 | O131: 1904-09-07 | P131: 1902-07-24
B132: Cash & Equivalents | C132: 583 | D132: 1901-08-05 | E132: 1901-07-15 | F132: 1901-08-21 | G132: 1902-03-23 | J132: Cash & Equivalents | K132: 755 | L132: 1902-02-12 | M132: 1901-07-05 | N132: 1901-08-05 | O132: 1901-08-09
B133: Short Term Investments | C133: 1129 | D133: 1617 | E133: 302 | F133: 1851 | G133: 0 | J133: Short Term Investments | K133: 66 | L133: 116 | M133: 872 | N133: 1129 | O133: 349
B134: Total Receivables, Net | D134: 1919-05-15 | E134: 1921-07-30 | F134: 1923-12-18 | G134: 1923-09-07 | H134: 1918-07-01 | J134: Total Receivables, Net | L134: 1915-08-22 | M134: 1915-08-31 | N134: 1915-08-30 | O134: 1916-11-04 | P134: 1916-04-20
B135: Accounts Receivable - Trade, Net | C135: 6153 | D135: 1919-01-26 | E135: 1922-02-17 | F135: 1922-01-18 | G135: 1916-12-15 | J135: Accounts Receivable - Trade, Net | K135: 5713 | L135: 1915-08-31 | M135: 1915-08-30 | N135: 1916-11-04 | O135: 1916-04-20
B136: Accounts Receivable - Trade, Gross | C136: 6843 | D136: 7982 | E136: 9094 | F136: 8624 | G136: 6711 | J136: Accounts Receivable - Trade, Gross | K136: 6144 | L136: 6202 | M136: 6286 | N136: 6843 | O136: 6730
B137: Provision for Doubtful Accounts | C137: -690 | D137: -1016 | E137: -1010 | F137: -570 | G137: -517 | J137: Provision for Doubtful Accounts | K137: -431 | L137: -480 | M137: -565 | N137: -690 | O137: -775
B138: Receivables - Other | C138: 922 | D138: 916 | E138: 669 | F138: 597 | G138: 563 | J138: Total Inventory | L138: 9890 | M138: 7926 | N138: 7696 | O138: 7596 | P138: 9550
B139: Total Inventory | D139: 7596 | E139: 7179 | F139: 6705 | G139: 6780 | H139: 6254 | J139: Prepaid Expenses | L139: 0 | M139: 0 | N139: 0 | O139: 0 | P139: 0
B140: Prepaid Expenses | D140: 0 | E140: 0 | F140: 0 | G140: 0 | H140: 0 | J140: Other Current Assets, Total | L140: 1948 | M140: 1521 | N140: 1527 | O140: 1752 | P140: 1905
B141: Other Current Assets, Total | D141: 830 | E141: 1163 | F141: 1166 | G141: 1025 | H141: 882 | J141: Total Current Assets | L141: 18372 | M141: 16059 | N141: 16368 | O141: 17213 | P141: 18346
B142: Total Current Assets | D142: 17213 | E142: 18424 | F142: 17488 | G142: 18906 | H142: 14706
J143: Property/Plant/Equipment, Total - Net | L143: 29040 | M143: 28373 | N143: 25648 | O143: 25493 | P143: 25590
B144: Property/Plant/Equipment, Total - Net | D144: 25493 | E144: 25280 | F144: 25756 | G144: 24095 | H144: 21431 | J144: Goodwill, Net | L144: 0 | M144: 0 | N144: 0 | O144: 0 | P144: 0
B145: Goodwill, Net | D145: 59 | E145: 59 | F145: 60 | G145: 60 | H145: 60 | J145: Intangibles, Net | L145: 0 | M145: 0 | N145: 0 | O145: 0 | P145: 0
B146: Intangibles, Net | D146: 164 | E146: 180 | F146: 171 | G146: 148 | H146: 152 | J146: Long Term Investments | L146: 0 | M146: 0 | N146: 0 | O146: 0 | P146: 0
B147: Long Term Investments | D147: 0 | E147: 0 | F147: 0 | G147: 0 | H147: 0 | J147: Note Receivable - Long Term | L147: 0 | M147: 0 | N147: 0 | O147: 0 | P147: 0
B148: Note Receivable - Long Term | D148: 0 | E148: 0 | F148: 0 | G148: 0 | H148: 0 | J148: Other Long Term Assets, Total | L148: 1035 | M148: 1067 | N148: 980 | O148: 999 | P148: 1013
B149: Other Long Term Assets, Total | D149: 776 | E149: 590 | F149: 631 | G149: 1351 | H149: 1000 | J149: Other Assets, Total | L149: 0 | M149: 0 | N149: 0 | O149: 0 | P149: 0
B150: Other Assets, Total | D150: 0 | E150: 0 | F150: 0 | G150: 0 | H150: 0 | J150: Total Assets | L150: 48447 | M150: 45499 | N150: 42996 | O150: 43705 | P150: 44949
B151: Total Assets | D151: 43705 | E151: 44533 | F151: 44106 | G151: 44560 | H151: 37349
J152: Liabilities and Shareholders' Equity
B153: Liabilities and Shareholders' Equity | J153: Accounts Payable | L153: 8053 | M153: 6519 | N153: 6296 | O153: 6625 | P153: 7761
B154: Accounts Payable | D154: 6625 | E154: 6511 | F154: 6337 | G154: 6721 | H154: 6575 | J154: Payable/Accrued | L154: 0 | M154: 0 | N154: 0 | O154: 0 | P154: 0
B155: Payable/Accrued | D155: 0 | E155: 0 | F155: 0 | G155: 0 | H155: 0 | J155: Accrued Expenses | L155: 3273 | M155: 3721 | N155: 3229 | O155: 3326 | P155: 3179
B156: Accrued Expenses | D156: 2481 | E156: 2405 | F156: 2100 | G156: 2109 | H156: 2004 | J156: Notes Payable/Short Term Debt | L156: 0 | M156: 0 | N156: 0 | O156: 0 | P156: 0
B157: Notes Payable/Short Term Debt | D157: 0 | E157: 0 | F157: 0 | G157: 0 | H157: 0 | J157: Current Port. of LT Debt/Capital Leases | L157: 2813 | M157: 1380 | N157: 1313 | O157: 119 | P157: 850
B158: Current Port. of LT Debt/Capital Leases | D158: 119 | E158: 1696 | F158: 1262 | G158: 1964 | H158: 1362 | J158: Other Current Liabilities, Total | L158: 0 | M158: 0 | N158: 0 | O158: 0 | P158: 0
B159: Other Current Liabilities, Total | D159: 845 | E159: 715 | F159: 813 | G159: 988 | H159: 1176 | J159: Total Current Liabilities | L159: 14139 | M159: 11620 | N159: 10838 | O159: 10070 | P159: 11790
B160: Total Current Liabilities | D160: 10070 | E160: 11327 | F160: 10512 | G160: 11782 | H160: 11117
J161: Total Long Term Debt | L161: 16156 | M161: 16160 | N161: 14416 | O161: 15607 | P161: 15680
B162: Total Long Term Debt | D162: 15607 | E162: 15118 | F162: 17490 | G162: 15126 | H162: 8675 | J162: Long Term Debt | K162: 16156 | L162: 16160 | M162: 14416 | N162: 15607 | O162: 15680
B163: Long Term Debt | C163: 15607 | D163: 15118 | E163: 17490 | F163: 15126 | G163: 8528 | J163: Deferred Income Tax | L163: 1199 | M163: 969 | N163: 916 | O163: 934 | P163: 814
B164: Capital Lease Obligations | C164: 0 | D164: 0 | E164: 0 | F164: 0 | G164: 147 | J164: Minority Interest | L164: 0 | M164: 0 | N164: 0 | O164: 0 | P164: 0
B165: Deferred Income Tax | D165: 934 | E165: 835 | F165: 455 | G165: 470 | H165: 577 | J165: Other Liabilities, Total | L165: 1689 | M165: 1644 | N165: 1596 | O165: 1607 | P165: 1786
B166: Minority Interest | D166: 0 | E166: 0 | F166: 0 | G166: 0 | H166: 0 | J166: Total Liabilities | L166: 33183 | M166: 30393 | N166: 27766 | O166: 28218 | P166: 30070
B167: Other Liabilities, Total | D167: 1607 | E167: 1906 | F167: 1937 | G167: 1875 | H167: 1347
B168: Total Liabilities | D168: 28218 | E168: 29186 | F168: 30394 | G168: 29253 | H168: 21716 | J168: Redeemable Preferred Stock | L168: 0 | M168: 0 | N168: 0 | O168: 0 | P168: 0
J169: Preferred Stock - Non Redeemable, Net | L169: 0 | M169: 0 | N169: 0 | O169: 0 | P169: 0
B170: Redeemable Preferred Stock | D170: 0 | E170: 0 | F170: 0 | G170: 0 | H170: 0 | J170: Common Stock | L170: 56 | M170: 56 | N170: 57 | O170: 59 | P170: 59
B171: Preferred Stock - Non Redeemable, Net | D171: 0 | E171: 0 | F171: 0 | G171: 0 | H171: 0 | J171: Additional Paid-In Capital | L171: 3431 | M171: 3385 | N171: 3345 | O171: 3311 | P171: 3128
B172: Common Stock | D172: 59 | E172: 62 | F172: 63 | G172: 68 | H172: 72 | J172: Retained Earnings (Accumulated Deficit) | L172: 12340 | M172: 12213 | N172: 12398 | O172: 12698 | P172: 12254
B173: Additional Paid-In Capital | D173: 3311 | E173: 2919 | F173: 2762 | G173: 2656 | H173: 2387 | J173: Other Equity, Total | L173: -563 | M173: -548 | N173: -570 | O173: -581 | P173: -562
B174: Retained Earnings (Accumulated Deficit) | D174: 12698 | E174: 12947 | F174: 11443 | G174: 12761 | H174: 13417 | J174: Total Equity | L174: 15264 | M174: 15106 | N174: 15230 | O174: 15487 | P174: 14879
B175: Other Equity, Total | D175: -581 | E175: -581 | F175: -556 | G175: -178 | H175: -243
B176: Total Equity | D176: 15487 | E176: 15347 | F176: 13712 | G176: 15307 | H176: 15633 | J176: Total Liabilities & Shareholdersâ€™ Equity | L176: 48447 | M176: 45499 | N176: 42996 | O176: 43705 | P176: 44949
B178: Total Liabilities & Shareholdersâ€™ Equity | D178: 43705 | E178: 44533 | F178: 44106 | G178: 44560 | H178: 37349
J179: Total Common Shares Outstanding | L179: 671.4 | M179: 675.2 | N179: 689 | O179: 704.04 | P179: 707.9
J180: Total Preferred Shares Outstanding | L180: 0 | M180: 0 | N180: 0 | O180: 0 | P180: 0
B181: Total Common Shares Outstanding | D181: 704.04 | E181: 744.64 | F181: 752.71 | G181: 818.74 | H181: 859.77
B182: Total Preferred Shares Outstanding | D182: 0 | E182: 0 | F182: 0 | G182: 0 | H182: 0 | J182: Financial data in U.S. Dollars
J183: Values in Millions (Except for per share items)
B184: Financial data in U.S. Dollars
B185: Values in Millions (Except for per share items) | J185: Business Type: Industry
B187: Business Type: Industry | J187: Financial statements are prepared in this standard format to allow direct comparisons of all companies and industries across multiple time frames.
B189: Financial statements are prepared in this standard format to allow direct comparisons of all companies and industries across multiple time frames. | J189: See 10K and 10Q SEC Filings for as reported statements
B191: See 10K and 10Q SEC Filings for as reported statements | J191: DATA PROVIDERS
B193: DATA PROVIDERS | J193: Copyright © 2011 Microsoft. All rights reserved.
B195: Copyright © 2011 Microsoft. All rights reserved. | J195: Quotes are real-time for NASDAQ, NYSE and AMEX. See delay times for other exchanges.
B197: Quotes are real-time for NASDAQ, NYSE and AMEX. See delay times for other exchanges. | J197: Fundamental company data and historical chart data provided by Thomson Reuters (click for restrictions). Real-time quotes provided by BATS Exchange. Real-time index quotes and delayed quotes supplied by Interactive Data Real-Time Services. Fund summary, fund performance and dividend data provided by Morningstar Inc. Analyst recommendations provided by Zacks Investment Research. StockScouter data provided by Verus Analytics. IPO data provided by Hoover's Inc. Index membership data provided by SIX Telekurs.
B199: Fundamental company data and historical chart data provided by Thomson Reuters (click for restrictions). Real-time quotes provided by BATS Exchange. Real-time index quotes and delayed quotes supplied by Interactive Data Real-Time Services. Fund summary, fund performance and dividend data provided by Morningstar Inc. Analyst recommendations provided by Zacks Investment Research. StockScouter data provided by Verus Analytics. IPO data provided by Hoover's Inc. Index membership data provided by SIX Telekurs. | J199: Japanese stock price data provided by Nomura Research Institute Ltd.; quotes delayed 20 minutes. Canadian fund data provided by CANNEX Financial Exchanges Ltd.
B201: Japanese stock price data provided by Nomura Research Institute Ltd.; quotes delayed 20 minutes. Canadian fund data provided by CANNEX Financial Exchanges Ltd. | J201: Privacy
J202: Legal
B203: Privacy | J203: Advertise
B204: Legal | J204: MSN Worldwide
B205: Advertise | J205: Help
B206: MSN Worldwide | J206: About our ads
B207: Help | J207: Feedback
B208: About our ads | J208: Site map
B209: Feedback | J209: RSS
B210: Site map | J210: © 2011 Microsoft
B211: RSS
B212: © 2011 Microsoft

Sheet Financials 10Y Summary
B2: More
B4: Autos
B5: Entertainment
B6: Lifestyle
B7: Online dating
B8: Video
B10: Careers & Jobs
B11: Games
B12: Local Edition
B13: Real Estate & Rentals
B14: Weather
B16: Celebrities
B17: Glo
B18: Money
B19: Sports
B20: White Pages
B22: Delish
B23: Health, Diet & Fitness
B24: News
B25: Travel
B26: Full MSN Index
B27: Hotmail
B29: Inbox
B30: Calendar
B31: Contacts
B32: Send e-mail
B33: Messenger
B34: Bing
B35: Make MSN your homepage Make Bing your decision engine
B36: Welcome
B37: Money
B38: Bing Search:
B39: Money
B40: |
B41: Web
B42: Bing search:
B43: Page options
B45: Make text larger
B46: enabledShow search suggestions
B47: Help
B48: |
B49: Sign in
B50: Home
B52: News
B54: Headlines
B55: Video
B56: Investing
B58: portfolio manager
B59: markets
B60: stocks
B61: mutual funds
B62: etfs
B63: broker center
B64: investor pro
B65: Personal Finance
B67: Saving & Budgeting
B68: Credit & Debt
B69: Loans
B70: Retirement
B71: Insurance
B72: Taxes
B73: Your Money
B74: My Money
B76: Real Estate
B78: Careers
B80: Autos
B82: Target Corp (NYSE : TGT)
B83: Trade now
B84: Add to Watchlist
B85: Get chart
B86: Print report
B87: Find financial results for: 53.50Up+0.03+0.06%Delayed
B88: MORE ABOUT TGT
B89: SUMMARY
B90: Quote
B91: Options
B92: Historical Prices
B93: CHARTS
B94: Basic
B95: NEWS
B96: Headlines
B97: Key Developments
B98: FUNDAMENTALS
B99: Financial Highlights
B100: Profile
B101: Key Ratios
B102: 10-Year Summary
B103: Earnings
B104: SEC Filings
B105: RATINGS/ANALYSIS
B106: StockScouter Report
B107: Analyst Ratings
B108: INSIDER ACTION
B109: Insider Trades
B110: Ownership
B111: FINANCIALS
B112: Income Statement
B113: Balance Sheet
B114: Cash Flow
B115: 10-Year Summary
B118: You can't view information about this ticker symbol because JavaScript is not enabled for your web browser. To enable JavaScript, consult online Help for your browser.
B123: Income Statement - 10 Year Summary (in Millions)
C124: Sales | D124: EBIT | E124: Depreciation | F124: Total Net Income | G124: EPS | H124: Tax Rate (%)
B125: 2011-01-11 | C125: 67390 | D125: 4495 | E125: 2084 | F125: 2920 | G125: 4 | H125: 35.04
B126: 2011-01-10 | C126: 65357 | D126: 3872 | E126: 2023 | F126: 2488 | G126: 3.3 | H126: 35.74
B127: 2011-01-09 | C127: 64948 | D127: 3536 | E127: 1825 | F127: 2214 | G127: 2.86 | H127: 37.39
B128: 2011-02-08 | C128: 63367 | D128: 4625 | E128: 1659 | F128: 2849 | G128: 3.35 | H128: 38.4
B129: 2011-02-07 | C129: 59490 | D129: 4497 | E129: 1496 | F129: 2787 | G129: 3.21 | H129: 38.03
B130: 2011-01-06 | C130: 52620 | D130: 3860 | E130: 1409 | F130: 2408 | G130: 2.71 | H130: 37.62
B131: 2011-01-05 | C131: 46839 | D131: 3031 | E131: 1259 | F131: 1885 | G131: 2.07 | H131: 37.81
B132: 2011-01-04 | C132: 42025 | D132: 2603 | E132: 1098 | F132: 1619 | G132: 1.76 | H132: 37.8
B133: 2011-02-03 | C133: 37410 | D133: 2227 | E133: 967 | F133: 1376 | G133: 1.5 | H133: 38.21
B134: 2011-02-02 | C134: 39826 | D134: 2207 | E134: 1079 | F134: 1368 | G134: 1.5 | H134: 38.02
B135: Balance Sheet - 10 Year Summary (in Millions)
C136: Current Assets | D136: Current Liabilities | E136: Long Term Debt | F136: Shares Outstanding
B137: 2011-01-11 | C137: 43705 | D137: 28218 | E137: 15607 | F137: 704.0 Mil
B138: 2011-01-10 | C138: 44533 | D138: 29186 | E138: 15118 | F138: 744.6 Mil
B139: 2011-01-09 | C139: 44106 | D139: 30394 | E139: 17490 | F139: 752.7 Mil
B140: 2011-02-08 | C140: 44560 | D140: 29253 | E140: 15126 | F140: 818.7 Mil
B141: 2011-02-07 | C141: 37349 | D141: 21716 | E141: 8675 | F141: 859.8 Mil
B142: 2011-01-06 | C142: 34995 | D142: 20790 | E142: 9119 | F142: 874.1 Mil
B143: 2011-01-05 | C143: 32293 | D143: 19264 | E143: 9034 | F143: 890.6 Mil
B144: 2011-01-04 | C144: 31416 | D144: 20284 | E144: 10155 | F144: 911.8 Mil
B145: 2011-02-03 | C145: 28603 | D145: 19160 | E145: 10186 | F145: 909.8 Mil
B146: 2011-02-02 | C146: 24154 | D146: 16294 | E146: 8088 | F146: 905.2 Mil
B148: Financial data in U.S. Dollars
B149: Values in Millions (Except for per share items)
B151: Business Type: Industry
B153: Financial statements are prepared in this standard format to allow direct comparisons of all companies and industries across multiple time frames.
B155: See 10K and 10Q SEC Filings for as reported statements
B157: DATA PROVIDERS
B159: Copyright © 2011 Microsoft. All rights reserved.
B161: Quotes are real-time for NASDAQ, NYSE and AMEX. See delay times for other exchanges.
B163: Fundamental company data and historical chart data provided by Thomson Reuters (click for restrictions). Real-time quotes provided by BATS Exchange. Real-time index quotes and delayed quotes supplied by Interactive Data Real-Time Services. Fund summary, fund performance and dividend data provided by Morningstar Inc. Analyst recommendations provided by Zacks Investment Research. StockScouter data provided by Verus Analytics. IPO data provided by Hoover's Inc. Index membership data provided by SIX Telekurs.
B165: Japanese stock price data provided by Nomura Research Institute Ltd.; quotes delayed 20 minutes. Canadian fund data provided by CANNEX Financial Exchanges Ltd.
B167: Privacy
B168: Legal
B169: Advertise
B170: MSN Worldwide
B171: Help
B172: About our ads
B173: Feedback
B174: Site map
B175: RSS
B176: © 2011 Microsoft

Sheet Assumptions
A1: Gordon Growth Rate: | B1: 0.03
A2: WACC | B2: 0.15
